{"text_format":"1","workbook":"xlsx","n_sheets":7,"sheets":["試験依頼1","試験依頼2","試験依頼3","試験依頼4","試験依頼5","試験依頼6","業者名"],"not_rendered":{"charts":0,"images":114,"macros":1,"external_links":0,"defined_names":6,"comments":0,"pivot_tables":0},"unopened":[],"bounds":{"document_bytes":16777216,"sheet_cells":100000,"rows_first":2000,"rows_last":500,"rows_between":2000,"halvings":0,"cell_chars":16384,"cell_head_chars":4096},"cells_cut":0,"cells_raw":0,"read":"whole","date_system":"1900"}

{"sheet":"試験依頼1","index":0,"n_rows":81,"n_cols":24,"rows_kept":81,"cut":false,"hidden":false,"merged":[[8,18,9,18],[9,12,10,13],[9,14,10,15],[9,16,10,17],[12,9,12,11],[12,12,12,17],[13,0,14,2],[13,3,14,3],[13,4,14,11],[13,12,14,12],[13,13,14,17],[0,0,10,4],[0,8,2,9],[0,10,2,15],[0,16,2,17],[5,9,5,17],[6,9,6,17],[8,12,8,13],[8,14,8,15],[8,16,8,17],[4,15,4,17],[15,0,15,2],[15,3,15,4],[15,5,15,12],[15,13,15,17],[16,0,16,2],[16,3,16,4],[16,5,16,12],[16,13,16,17],[18,0,19,1],[18,2,19,2],[18,3,19,9],[18,10,19,10],[18,12,18,17],[19,11,19,17],[21,0,21,1],[21,3,21,9],[21,11,21,17],[22,0,22,2],[22,3,22,17],[23,0,23,2],[23,3,23,17],[30,15,30,17],[30,3,30,5],[30,6,30,8],[24,0,25,2],[24,3,25,17],[31,0,33,2],[31,3,31,14],[30,12,30,14],[28,6,29,8],[34,12,34,14],[24,19,25,19],[26,0,27,2],[26,3,27,17],[26,19,27,19],[28,3,29,5],[31,15,31,17],[32,3,32,14],[32,15,33,17],[33,3,33,14],[28,9,28,11],[28,12,28,14],[28,15,29,17],[29,9,29,11],[29,12,29,14],[30,9,30,11],[28,0,30,2],[34,15,34,17],[34,0,34,2],[34,3,34,5],[34,6,34,7],[34,8,34,9],[34,10,34,11],[37,0,37,2],[37,3,37,17],[38,0,40,2],[38,3,38,17],[39,3,39,17],[40,3,40,17],[35,0,36,2],[35,3,36,5],[35,6,36,6],[35,7,36,7],[35,8,35,9],[35,10,35,11],[35,15,35,17],[36,8,36,9],[36,10,36,11],[36,15,36,17],[41,0,41,2],[42,0,42,2],[42,3,42,8],[42,11,43,17],[43,0,43,2],[43,3,43,8],[44,0,44,2],[44,3,44,9],[44,10,45,14],[44,15,45,16],[44,17,45,17],[45,0,45,2],[45,3,45,9],[46,0,46,2],[46,3,46,17],[51,0,51,2],[51,3,51,14],[51,15,51,17],[52,0,52,2],[52,3,52,14],[52,15,52,17],[47,0,47,17],[48,0,48,2],[48,3,48,7],[48,8,48,14],[48,15,48,17],[49,0,49,2],[49,3,49,7],[49,8,49,14],[49,15,50,17],[50,0,50,2],[50,3,50,7],[50,8,50,14],[55,0,55,2],[55,3,55,14],[55,15,57,17],[56,0,56,2],[56,3,56,14],[57,0,57,2],[57,3,57,14],[53,0,53,2],[53,3,53,14],[53,15,53,17],[54,0,54,2],[54,3,54,14],[54,15,54,17]]}
[null,null,null,null,null,null,null,null,"受付番号",null,null,null,null,null,null,null,null,null,null,null,"RQD\n\n\n\n\n\n\n\n\n\n\n\n\n\n\n\n2\n\n\n\nあああああああああああああああああああああああああああああああ\n\n\n\n\n\n\n\n\n\n\n\n\n\n28\n\n\n\n\n\n\n\n\n\n\n\n\n\n\n\n3108"]
[]
[null,null,null,null,null,null,null,null,null,null,null,null,null,null,null,null,null,null,null,"※注意事項※","計算式が入っています。さわらないで下さい"]
[null,null,null,null,null,null,null,null,null,null,null,null,null,null,null,null,null,null,null,"QRコードに変換する情報はＵ列に保存されます。",{"$f":"IF(M13=\"\",\"\",M13)","v":""},"メールアドレス"]
[null,null,null,null,null,null,null,null,null,null,null,null,null,null,null,"2020.6.1改定（Rev.9)",null,null,null,"セルの行や列を増やすと、読み込みエラーが"]
[null,null,null,null,null,null,null,null,null,"様式 011-1  コンクリート強度試験依頼書",null,null,null,null,null,null,null,null,null,"発生しますので、絶対に行わないで下さい。"]
[null,null,null,null,null,null,null,null,null,"石川県生コンクリート工業組合共同試験場行",null,null,null,null,null,null,null,null,null,null,{"$f":"IF(E14=\"\",\"\",E14)","v":""},"顧客名"]
[]
[null,null,null,null,null,null,null,null,null,null,null,null,null,null,"技術管理者",null,"受付者"]
[null,null,null,null,null,null,null,null,null,null,null,null,null,null,null,null,null,null,null,null,{"$f":"IF(L22=\"\",\"\",L22)","v":""},"報告書宛名住所"]
[null,null,null,null,null,null,null,null,null,null,null,null,null,null,null,null,null,null,null,null,{"$f":"IF(D22=\"\",\"\",D22)","v":""},"報宛"]
[]
["【顧客情報欄】",null,null,null,null,null,null,null,null,"メールアドレス",null,null,null,null,null,null,null,null,null,"メールアドレス記入して下さい",{"$f":"IF(L20=\"\",\"\",L20)","v":""},"請求先住所"]
["顧客又は代理者",null,null,"会社名",null,null,null,null,null,null,null,null,"担当者",null,null,null,null,null,null,"依頼書の返送、報告書の速報を送ることがきます",{"$f":"IF(D19=\"\",\"\",D19)","v":""},"請求先"]
[null,null,null,null,null,null,null,null,null,null,null,null,null,null,null,null,null,null,null,"顧客　＝報告書宛名に記載する方を指します"]
[null,null,null,"郵便番号",null,"住所",null,null,null,null,null,null,null,"連絡先",null,null,null,null,null,"代理者＝顧客(報告書宛名)から試験を代理で依頼する方を指します"]
[null,null,null,null,null,null,null,null,null,null,null,null,null,null,null,null,null,null,null,"代行試験の場合、代理者に☑を入れて下さい"]
["【試験の請求先】",null,null,null,null,null,null,null,null,null,null,null,null,null,null,null,null,null,null,null,null,null,null,0]
["請求先",null,"会社名",null,null,null,null,null,null,null,"住所","〒",null,null,null,null,null,null,null,"試験料金の請求先を明記して下さい",{"$f":"IF(P45=\"\",\"\",P45)","v":2},"部数"]
[]
["【試験報告書記載欄】",null,null,null,null,null,null,null,null,null,null,null,null,null,null,null,null,null,null,"                 請求先・報告書宛名・施工者を検索できます "]
["報告書宛名",null,"会社名",null,null,null,null,null,null,null,"住所",null,null,null,null,null,null,null,null,"報告書の表紙(表面)に記載する顧客の名前及び住所を明記して下さい",{"$f":"IF(D23=\"\",\"\",D23)","v":""},"施工者"]
["施工者",null,null,null,null,null,null,null,null,null,null,null,null,null,null,null,null,null,null,"施工者名を明記して下さい",{"$f":"IF(D24=\"\",\"\",D24)","v":""},"工事名"]
["工事名",null,null,null,null,null,null,null,null,null,null,null,null,null,null,null,null,null,null,"工事名を明記して下さい",{"$f":"IF(D25=\"\",\"\",D25)","v":""},"打設箇所"]
["打設箇所",null,null,null,null,null,null,null,null,null,null,null,null,null,null,null,null,null,null,"打設箇所を明記して下さい",{"$f":"IF(D27=\"\",\"\",D27)","v":""},"生コン納入工場"]
[null,null,null,null,null,null,null,null,null,null,null,null,null,null,null,null,null,null,null,null,{"$f":"IF(D31=\"\",\"\",D31)","v":""},"コンクリート種類"]
["生コン納入工場",null,null,null,null,null,null,null,null,null,null,null,null,null,null,null,null,null,null,"納入した生コン工場名を明記して下さい",{"$f":"IF(G31=\"\",\"\",G31)","v":""},"呼び強度"]
[null,null,null,null,null,null,null,null,null,null,null,null,null,null,null,null,null,null,null,null,{"$f":"IF(J31=\"\",\"\",J31)","v":""},"スランプ"]
["呼び方",null,null,"コンクリートの 　 　　　種類による記号",null,null,"呼び強度",null,null,"スランプ又は",null,null,"粗骨材の最大寸法",null,null,"セメントの種類　　　　による記号",null,null,null,null,{"$f":"IF(M31=\"\",\"\",M31)","v":""},"骨材の最大寸法"]
[null,null,null,null,null,null,null,null,null,"スランプフロー（cm）",null,null,"（mm）",null,null,null,null,null,null,"製品の呼び方を明記して下さい",{"$f":"IF(P31=\"\",\"\",P31)","v":""},"セメントの種類"]
[null,null,null,null,null,null,null,null,null,null,null,null,null,null,null,null,null,null,"い","コンクリートの種類及びセメントの種類は▼タブで選択できます",{"$f":"IF(D32=\"\",\"\",D32)","v":""},"指定事項欄①"]
["指定事項",null,null,null,null,null,null,null,null,null,null,null,null,null,null,"構造体強度補正値",null,null,null,"補正値の名称は▼タブで選択できます（気温による補正値）",{"$f":"IF(D33=\"\",\"\",D33)","v":""},"指定事項欄②"]
[null,null,null,null,null,null,null,null,null,null,null,null,null,null,null,null,null,null,null,null,{"$f":"IF(D34=\"\",\"\",D34)","v":""},"指定事項欄③","普通"]
[null,null,null,null,null,null,null,null,null,null,null,null,null,null,null,null,null,null,null,null,{"$f":"IF(P33=\"\",\"\",P33)","v":""},"補正値","舗装"]
["供試体作製日",null,null,"強度試験予定日",null,null,"材齢",null,"養生",null,"本数",null,"供試体識別番号",null,null,"摘要",null,null,null,null,{"$f":"IF(A36=\"\",\"\",A36)","v":""},"供試体作製日","軽量"]
[null,null,null,null,null,null,28,"日",null,null,null,null,null,null,null,null,null,null,null,"■ボタンは、試験予定日又は材齢の入力ボタンです",{"$f":"IF(D36=\"\",\"\",D36)","v":""},"試験予定日","高強度"]
[null,null,null,null,null,null,null,null,null,null,null,null,null,null,null,null,null,null,null,"作製日と材齢を入力しボタンを押すと、試験日が表示されます",{"$f":"IF(G36=\"\",\"\",G36)","v":28},"材齢"]
["供試体形状寸法",null,null,null,null,null,null,null,null,null,null,null,null,null,null,null,null,null,null,"作製日と試験日を入力しボタンを押すと、材齢が表示されます",{"$f":"IF(I36=\"\",\"\",I36)","v":""},"養生1","Ｎ"]
["備考",null,null,null,null,null,null,null,null,null,null,null,null,null,null,null,null,null,null,"養生方法、本数は▼タブで選択できます",{"$f":"IF(I37=\"\",\"\",I37)","v":""},"養生2","ＢＢ"]
[null,null,null,null,null,null,null,null,null,null,null,null,null,null,null,null,null,null,null,null,{"$f":"IF(K36=\"\",\"\",K36)","v":""},"試験本数１","Ｈ"]
[null,null,null,null,null,null,null,null,null,null,null,null,null,null,null,null,null,null,null,null,{"$f":"IF(K37=\"\",\"\",K37)","v":""},"試験本数２","ＦＢ"]
["【その他】　",null,null,null,null,null,null,null,null,null,null,null,null,null,null,null,null,null,null,null,{"$f":"IF(M36=\"\",\"\",M36)","v":""},"識別No.1"]
["JNLAロゴマーク",null,null,null,null,null,null,null,null,"発注",null,null,null,null,null,null,null,null,null,"JNLAロゴ入り報告書が必要な場合は「必要」に☑をして下さい",{"$f":"IF(N36=\"\",\"\",N36)","v":""},"識別No.2"]
["証明事項",null,null,null,null,null,null,null,null,"機関",null,null,null,null,null,null,null,null,null,"発注先を選択して下さい。左記に該当する項目がない場合は、",{"$f":"IF(O36=\"\",\"\",O36)","v":""},"識別No.3","標準"]
["報告書受領方法",null,null,null,null,null,null,null,null,null,"試験報告書部数",null,null,null,null,2,null,"部",null,"その他に☑をお願いします",{"$f":"IF(M37=\"\",\"\",M37)","v":""},"識別No.4","現場水中"]
["試料の処分方法",null,null,null,null,null,null,null,null,null,null,null,null,null,null,null,null,null,null,"報告書の部数は必ず明記して下さい",{"$f":"IF(N37=\"\",\"\",N37)","v":""},"識別No.5","現場空中"]
["連絡事項",null,null,null,null,null,null,null,null,null,null,null,null,null,null,null,null,null,null,"連絡事項の欄は、報告書に記載されない箇所です。試験場へ",{"$f":"IF(O37=\"\",\"\",O37)","v":""},"識別No.6","現場封かん"]
["【試験場記入欄】　以下の欄は、記入しないで下さい。",null,null,null,null,null,null,null,null,null,null,null,null,null,null,null,null,null,null,"伝達する内容がありましたらこの欄に明記して下さい",{"$f":"IF(P36=\"\",\"\",P36)","v":""},"摘要欄１"]
["試験方法",null,null,"依頼試験項目",null,null,null,null,"区分",null,null,null,null,null,null,"数量",null,null,null,null,{"$f":"IF(P37=\"\",\"\",P37)","v":""},"摘要欄２"]
["JIS A 1108：2018",null,null,"　□　圧縮強度試験",null,null,null,null," □ 一般試験  □ ISO/IEC17025(JNLA)　                  ",null,null,null,null,null,null,{"$f":"IF(I36=\"\",\"\",SUM(I36:J37))","v":""}]
["JIS A 1106：2018",null,null,"　□　曲げ強度試験",null,null,null,null," □ 高強度  □ 高強度ISO/IEC17025(JNLA)",null,null,null,null,null,null,null,null,null,null,null,{"$f":"IF(D39=\"\",\"\",D39)","v":""},"備1"]
["JIS A 1132：2020",null,null,"　□　研磨又はキャッピング",null,null,null,null,null,null,null,null,null,null,null,null,null,null,null,null,{"$f":"IF(D40=\"\",\"\",D40)","v":""},"備2"]
["-----",null,null,"　　　事務手数料（報告書2部・郵送料含）",null,null,null,null,null,null,null,null,null,null,null,{"$f":"IF(P45=\"\",\"\",1)","v":1},null,null,null,null,{"$f":"IF(D41=\"\",\"3108\",D41)","v":"3108"},"備3"]
["-----",null,null,"　　　副本代　　（報告書1部追加ごとに）",null,null,null,null,null,null,null,null,null,null,null,{"$f":"IF(P45=0,\"\",IF(P45=1,\"\",P45-2))","v":0}]
["確認事項",null,null,"　□ 顧客又は代理者が、JIS A 1132の供試体の形状許容差を保証することを了承",null,null,null,null,null,null,null,null,null,null,null,"試験料金（税別）"]
["送付先",null,null,"　□ 報告書宛名　□ 請求先　   ※顧客又は代理者以外の場合記入"]
["試料の状態",null,null,"　□ 良好　      □ 異常　     ※異常は、結果に影響を及ぼす状態を指す"]
["備　考",null,null,"　",null,null,null,null,null,null,null,null,null,null,null,null,null,null,null,null,null,null,"JIS A 1108：2006"]
[null,null,null,null,null,null,null,null,null,null,null,null,null,null,null,null,null,null,null,null,null,null,"JIS A 1106：2006"]
[null,null,null,null,null,null,null,null,null,null,null,null,null,null,null,null,null,null,null,null,null,null,"JIS A 1132：2014"]
[]
[]
[]
[]
[null,null,null,null,null,null,null,null,null,null,null,null,null,null,null,null,null,null,null,null,null,null,"1式"]
[null,null,null,null,null,null,null,null,null,null,null,null,null,null,null,null,null,null,null,null,null,null,"1部追加"]
[]
[]
[]
[]
[null,null,null,null,null,null,null,null,null,null,null,null,null,null,null,null,null,null,null,null,null,null,"湿潤"]
[null,null,null,null,null,null,null,null,null,null,null,null,null,null,null,null,null,null,null,null,null,null,"乾燥"]
[]
[null,null,null,null,null,null,null,null,null,null,null,null,null,null,null,null,null,null,null,null,null,null,"無"]
[null,null,null,null,null,null,null,null,null,null,null,null,null,null,null,null,null,null,null,null,null,null,"有"]
[]
[null,null,null,null,null,null,null,null,null,null,null,null,null,null,null,null,null,null,null,null,null,null,"セメントペースト"]
[null,null,null,null,null,null,null,null,null,null,null,null,null,null,null,null,null,null,null,null,null,null,"その他"]
[]
[null,null,null,null,null,null,null,null,null,null,null,null,null,null,null,null,null,null,null,null,null,null,"構造体強度補正値"]
[null,null,null,null,null,null,null,null,null,null,null,null,null,null,null,null,null,null,null,null,null,null,"気温による補正値"]

{"sheet":"試験依頼2","index":1,"n_rows":81,"n_cols":24,"rows_kept":81,"cut":false,"hidden":false,"merged":[[8,18,9,18],[9,12,10,13],[9,14,10,15],[9,16,10,17],[12,9,12,11],[12,12,12,17],[8,12,8,13],[8,14,8,15],[8,16,8,17],[13,0,14,2],[13,3,14,3],[13,4,14,11],[13,12,14,12],[13,13,14,17],[0,0,10,4],[0,8,2,9],[0,10,2,15],[0,16,2,17],[4,15,4,17],[5,9,5,17],[6,9,6,17],[15,0,15,2],[15,3,15,4],[15,5,15,12],[15,13,15,17],[16,0,16,2],[16,3,16,4],[16,5,16,12],[16,13,16,17],[18,0,19,1],[18,2,19,2],[18,3,19,9],[18,10,19,10],[18,12,18,17],[19,11,19,17],[21,0,21,1],[21,3,21,9],[21,11,21,17],[22,0,22,2],[22,3,22,17],[23,0,23,2],[23,3,23,17],[30,15,30,17],[30,3,30,5],[30,6,30,8],[24,0,25,2],[24,3,25,17],[31,0,33,2],[31,3,31,14],[30,12,30,14],[28,6,29,8],[34,12,34,14],[24,19,25,19],[26,0,27,2],[26,3,27,17],[26,19,27,19],[28,3,29,5],[31,15,31,17],[32,3,32,14],[32,15,33,17],[33,3,33,14],[28,9,28,11],[28,12,28,14],[28,15,29,17],[29,9,29,11],[29,12,29,14],[30,9,30,11],[28,0,30,2],[34,15,34,17],[34,0,34,2],[34,3,34,5],[34,6,34,7],[34,8,34,9],[34,10,34,11],[37,0,37,2],[37,3,37,17],[38,0,40,2],[38,3,38,17],[39,3,39,17],[40,3,40,17],[35,0,36,2],[35,3,36,5],[35,6,36,6],[35,7,36,7],[35,8,35,9],[35,10,35,11],[35,15,35,17],[36,8,36,9],[36,10,36,11],[36,15,36,17],[41,0,41,2],[42,0,42,2],[42,3,42,8],[42,11,43,17],[43,0,43,2],[43,3,43,8],[44,0,44,2],[44,3,44,9],[44,10,45,14],[44,15,45,16],[44,17,45,17],[45,0,45,2],[45,3,45,9],[46,0,46,2],[46,3,46,17],[51,0,51,2],[51,3,51,14],[51,15,51,17],[52,0,52,2],[52,3,52,14],[52,15,52,17],[47,0,47,17],[48,0,48,2],[48,3,48,7],[48,8,48,14],[48,15,48,17],[49,0,49,2],[49,3,49,7],[49,8,49,14],[49,15,50,17],[50,0,50,2],[50,3,50,7],[50,8,50,14],[55,0,55,2],[55,3,55,14],[55,15,57,17],[56,0,56,2],[56,3,56,14],[57,0,57,2],[57,3,57,14],[53,0,53,2],[53,3,53,14],[53,15,53,17],[54,0,54,2],[54,3,54,14],[54,15,54,17]]}
[null,null,null,null,null,null,null,null,"受付番号",null,null,null,null,null,null,null,null,null,null,null,"RQD\n\n\n\n\n\n\n\n\n\n\n\n\n\n\n\n2\n\n\nああああああああああああああああああああああああああああああああ\nああああああああああああああああああああああああああああああああ\n\n\n\n\n\n\n\n\n\n\n\n\n\n28\n\n\n\n\n\n\n\n\n\n\n\n\n\n\n\n3108"]
[]
[null,null,null,null,null,null,null,null,null,null,null,null,null,null,null,null,null,null,null,"※注意事項※","計算式が入っています。さわらないで下さい"]
[null,null,null,null,null,null,null,null,null,null,null,null,null,null,null,null,null,null,null,"QRコードに変換する情報はＵ列に保存されます。",{"$f":"IF(M13=\"\",\"\",M13)","v":""},"メールアドレス"]
[null,null,null,null,null,null,null,null,null,null,null,null,null,null,null,"2020.6.1改定（Rev.9)",null,null,null,"セルの行や列を増やすと、読み込みエラーが"]
[null,null,null,null,null,null,null,null,null,"様式 011-1  コンクリート強度試験依頼書",null,null,null,null,null,null,null,null,null,"発生しますので、絶対に行わないで下さい。"]
[null,null,null,null,null,null,null,null,null,"石川県生コンクリート工業組合共同試験場行",null,null,null,null,null,null,null,null,null,null,{"$f":"IF(E14=\"\",\"\",E14)","v":""},"顧客名"]
[]
[null,null,null,null,null,null,null,null,null,null,null,null,null,null,"技術管理者",null,"受付者",null,null,"試験依頼書の印刷はボタンを使用して下さい"]
[null,null,null,null,null,null,null,null,null,null,null,null,null,null,null,null,null,null,null,"印刷時にＱＲコードが作成されます",{"$f":"IF(L22=\"\",\"\",L22)","v":""},"報告書宛名住所"]
[null,null,null,null,null,null,null,null,null,null,null,null,null,null,null,null,null,null,null,null,{"$f":"IF(D22=\"\",\"\",D22)","v":""},"報宛"]
[]
["【顧客情報欄】",null,null,null,null,null,null,null,null,"メールアドレス",null,null,null,null,null,null,null,null,null,"メールアドレス記入して下さい",{"$f":"IF(L20=\"\",\"\",L20)","v":""},"請求先住所"]
["顧客又は代理者",null,null,"会社名",null,null,null,null,null,null,null,null,"担当者",null,null,null,null,null,null,"依頼書の返送、報告書の速報を送ることがきます",{"$f":"IF(D19=\"\",\"\",D19)","v":""},"請求先"]
[null,null,null,null,null,null,null,null,null,null,null,null,null,null,null,null,null,null,null,"顧客　＝報告書宛名に記載する方を指します"]
[null,null,null,"郵便番号",null,"住所",null,null,null,null,null,null,null,"連絡先",null,null,null,null,null,"代理者＝顧客(報告書宛名)から試験を代理で依頼する方を指します"]
[null,null,null,null,null,null,null,null,null,null,null,null,null,null,null,null,null,null,null,"代行試験の場合、代理者に☑を入れて下さい"]
["【試験の請求先】",null,null,null,null,null,null,null,null,null,null,null,null,null,null,null,null,null,null,null,null,null,null,0]
["請求先",null,"会社名",null,null,null,null,null,null,null,"住所","〒",null,null,null,null,null,null,null,"試験料金の請求先を明記して下さい",{"$f":"IF(P45=\"\",\"\",P45)","v":2},"部数"]
[]
["【試験報告書記載欄】",null,null,null,null,null,null,null,null,null,null,null,null,null,null,null,null,null,null,"                 請求先・報告書宛名・施工者を検索できます "]
["報告書宛名",null,"会社名",null,null,null,null,null,null,null,"住所",null,null,null,null,null,null,null,null,"報告書の表紙(表面)に記載する顧客の名前及び住所を明記して下さい",{"$f":"IF(D23=\"\",\"\",D23)","v":""},"施工者"]
["施工者",null,null,null,null,null,null,null,null,null,null,null,null,null,null,null,null,null,null,"施工者名を明記して下さい",{"$f":"IF(D24=\"\",\"\",D24)","v":""},"工事名"]
["工事名",null,null,null,null,null,null,null,null,null,null,null,null,null,null,null,null,null,null,"工事名を明記して下さい",{"$f":"IF(D25=\"\",\"\",D25)","v":""},"打設箇所"]
["打設箇所",null,null,null,null,null,null,null,null,null,null,null,null,null,null,null,null,null,null,"打設箇所を明記して下さい",{"$f":"IF(D27=\"\",\"\",D27)","v":""},"生コン納入工場"]
[null,null,null,null,null,null,null,null,null,null,null,null,null,null,null,null,null,null,null,null,{"$f":"IF(D31=\"\",\"\",D31)","v":""},"コンクリート種類"]
["生コン納入工場",null,null,null,null,null,null,null,null,null,null,null,null,null,null,null,null,null,null,"納入した生コン工場名を明記して下さい",{"$f":"IF(G31=\"\",\"\",G31)","v":""},"呼び強度"]
[null,null,null,null,null,null,null,null,null,null,null,null,null,null,null,null,null,null,null,null,{"$f":"IF(J31=\"\",\"\",J31)","v":""},"スランプ"]
["呼び方",null,null,"コンクリートの 　 　　　種類による記号",null,null,"呼び強度",null,null,"スランプ又は",null,null,"粗骨材の最大寸法",null,null,"セメントの種類　　　　による記号",null,null,null,null,{"$f":"IF(M31=\"\",\"\",M31)","v":""},"骨材の最大寸法"]
[null,null,null,null,null,null,null,null,null,"スランプフロー（cm）",null,null,"（mm）",null,null,null,null,null,null,"製品の呼び方を明記して下さい",{"$f":"IF(P31=\"\",\"\",P31)","v":""},"セメントの種類"]
[null,null,null,null,null,null,null,null,null,null,null,null,null,null,null,null,null,null,"い","コンクリートの種類及びセメントの種類は▼タブで選択できます",{"$f":"IF(D32=\"\",\"\",D32)","v":""},"指定事項欄①"]
["指定事項",null,null,null,null,null,null,null,null,null,null,null,null,null,null,"構造体強度補正値",null,null,null,"補正値の名称は▼タブで選択できます（気温による補正値）",{"$f":"IF(D33=\"\",\"\",D33)","v":""},"指定事項欄②"]
[null,null,null,null,null,null,null,null,null,null,null,null,null,null,null,null,null,null,null,null,{"$f":"IF(D34=\"\",\"\",D34)","v":""},"指定事項欄③","普通"]
[null,null,null,null,null,null,null,null,null,null,null,null,null,null,null,null,null,null,null,null,{"$f":"IF(P33=\"\",\"\",P33)","v":""},"補正値","舗装"]
["供試体作製日",null,null,"強度試験予定日",null,null,"材齢",null,"養生",null,"本数",null,"供試体識別番号",null,null,"摘要",null,null,null,null,{"$f":"IF(A36=\"\",\"\",A36)","v":""},"供試体作製日","軽量"]
[null,null,null,null,null,null,28,"日",null,null,null,null,null,null,null,null,null,null,null,"■ボタンは、試験予定日又は材齢の入力ボタンです",{"$f":"IF(D36=\"\",\"\",D36)","v":""},"試験予定日","高強度"]
[null,null,null,null,null,null,null,null,null,null,null,null,null,null,null,null,null,null,null,"作製日と材齢を入力しボタンを押すと、試験日が表示されます",{"$f":"IF(G36=\"\",\"\",G36)","v":28},"材齢"]
["供試体形状寸法",null,null,null,null,null,null,null,null,null,null,null,null,null,null,null,null,null,null,"作製日と試験日を入力しボタンを押すと、材齢が表示されます",{"$f":"IF(I36=\"\",\"\",I36)","v":""},"養生1","Ｎ"]
["備考",null,null,null,null,null,null,null,null,null,null,null,null,null,null,null,null,null,null,"養生方法、本数は▼タブで選択できます",{"$f":"IF(I37=\"\",\"\",I37)","v":""},"養生2","ＢＢ"]
[null,null,null,null,null,null,null,null,null,null,null,null,null,null,null,null,null,null,null,null,{"$f":"IF(K36=\"\",\"\",K36)","v":""},"試験本数１","Ｈ"]
[null,null,null,null,null,null,null,null,null,null,null,null,null,null,null,null,null,null,null,null,{"$f":"IF(K37=\"\",\"\",K37)","v":""},"試験本数２","ＦＢ"]
["【その他】　",null,null,null,null,null,null,null,null,null,null,null,null,null,null,null,null,null,null,null,{"$f":"IF(M36=\"\",\"\",M36)","v":""},"識別No.1"]
["JNLAロゴマーク",null,null,null,null,null,null,null,null,"発注",null,null,null,null,null,null,null,null,null,"JNLAロゴ入り報告書が必要な場合は「必要」に☑をして下さい",{"$f":"IF(N36=\"\",\"\",N36)","v":""},"識別No.2"]
["証明事項",null,null,null,null,null,null,null,null,"機関",null,null,null,null,null,null,null,null,null,"発注先を選択して下さい。左記に該当する項目がない場合は、",{"$f":"IF(O36=\"\",\"\",O36)","v":""},"識別No.3","標準"]
["報告書受領方法",null,null,null,null,null,null,null,null,null,"試験報告書部数",null,null,null,null,2,null,"部",null,"その他に☑をお願いします",{"$f":"IF(M37=\"\",\"\",M37)","v":""},"識別No.4","現場水中"]
["試料の処分方法",null,null,null,null,null,null,null,null,null,null,null,null,null,null,null,null,null,null,"報告書の部数は必ず明記して下さい",{"$f":"IF(N37=\"\",\"\",N37)","v":""},"識別No.5","現場空中"]
["連絡事項",null,null,null,null,null,null,null,null,null,null,null,null,null,null,null,null,null,null,"連絡事項の欄は、報告書に記載されない箇所です。試験場へ",{"$f":"IF(O37=\"\",\"\",O37)","v":""},"識別No.6","現場封かん"]
["【試験場記入欄】　以下の欄は、記入しないで下さい。",null,null,null,null,null,null,null,null,null,null,null,null,null,null,null,null,null,null,"伝達する内容がありましたらこの欄に明記して下さい",{"$f":"IF(P36=\"\",\"\",P36)","v":""},"摘要欄１"]
["試験方法",null,null,"依頼試験項目",null,null,null,null,"区分",null,null,null,null,null,null,"数量",null,null,null,null,{"$f":"IF(P37=\"\",\"\",P37)","v":""},"摘要欄２"]
["JIS A 1108：2018",null,null,"　□　圧縮強度試験",null,null,null,null," □ 一般試験  □ ISO/IEC17025(JNLA)　                  ",null,null,null,null,null,null,{"$f":"IF(I36=\"\",\"\",SUM(I36:J37))","v":""}]
["JIS A 1106：2018",null,null,"　□　曲げ強度試験",null,null,null,null," □ 高強度  □ 高強度ISO/IEC17025(JNLA)",null,null,null,null,null,null,null,null,null,null,null,{"$f":"IF(D39=\"\",\"\",D39)","v":""},"備1"]
["JIS A 1132：2020",null,null,"　□　研磨又はキャッピング",null,null,null,null,null,null,null,null,null,null,null,null,null,null,null,null,{"$f":"IF(D40=\"\",\"\",D40)","v":""},"備2"]
["-----",null,null,"　　　事務手数料（報告書2部・郵送料含）",null,null,null,null,null,null,null,null,null,null,null,{"$f":"IF(P45=\"\",\"\",1)","v":1},null,null,null,null,{"$f":"IF(D41=\"\",\"3108\",D41)","v":"3108"},"備3"]
["-----",null,null,"　　　副本代　　（報告書1部追加ごとに）",null,null,null,null,null,null,null,null,null,null,null,{"$f":"IF(P45=0,\"\",IF(P45=1,\"\",P45-2))","v":0}]
["確認事項",null,null,"　□ 顧客又は代理者が、JIS A 1132の供試体の形状許容差を保証することを了承",null,null,null,null,null,null,null,null,null,null,null,"試験料金（税別）"]
["送付先",null,null,"　□ 報告書宛名　□ 請求先　   ※顧客又は代理者以外の場合記入"]
["試料の状態",null,null,"　□ 良好　      □ 異常　     ※異常は、結果に影響を及ぼす状態を指す"]
["備　考",null,null,"　",null,null,null,null,null,null,null,null,null,null,null,null,null,null,null,null,null,null,"JIS A 1108：2006"]
[null,null,null,null,null,null,null,null,null,null,null,null,null,null,null,null,null,null,null,null,null,null,"JIS A 1106：2006"]
[null,null,null,null,null,null,null,null,null,null,null,null,null,null,null,null,null,null,null,null,null,null,"JIS A 1132：2014"]
[]
[]
[]
[]
[null,null,null,null,null,null,null,null,null,null,null,null,null,null,null,null,null,null,null,null,null,null,"1式"]
[null,null,null,null,null,null,null,null,null,null,null,null,null,null,null,null,null,null,null,null,null,null,"1部追加"]
[]
[]
[]
[]
[null,null,null,null,null,null,null,null,null,null,null,null,null,null,null,null,null,null,null,null,null,null,"湿潤"]
[null,null,null,null,null,null,null,null,null,null,null,null,null,null,null,null,null,null,null,null,null,null,"乾燥"]
[]
[null,null,null,null,null,null,null,null,null,null,null,null,null,null,null,null,null,null,null,null,null,null,"無"]
[null,null,null,null,null,null,null,null,null,null,null,null,null,null,null,null,null,null,null,null,null,null,"有"]
[]
[null,null,null,null,null,null,null,null,null,null,null,null,null,null,null,null,null,null,null,null,null,null,"セメントペースト"]
[null,null,null,null,null,null,null,null,null,null,null,null,null,null,null,null,null,null,null,null,null,null,"その他"]
[]
[null,null,null,null,null,null,null,null,null,null,null,null,null,null,null,null,null,null,null,null,null,null,"構造体強度補正値"]
[null,null,null,null,null,null,null,null,null,null,null,null,null,null,null,null,null,null,null,null,null,null,"気温による補正値"]

{"sheet":"試験依頼3","index":2,"n_rows":81,"n_cols":24,"rows_kept":81,"cut":false,"hidden":false,"merged":[[8,18,9,18],[9,12,10,13],[9,14,10,15],[9,16,10,17],[12,9,12,11],[12,12,12,17],[8,12,8,13],[8,14,8,15],[8,16,8,17],[13,0,14,2],[13,3,14,3],[13,4,14,11],[13,12,14,12],[13,13,14,17],[0,0,10,4],[0,8,2,9],[0,10,2,15],[0,16,2,17],[4,15,4,17],[5,9,5,17],[6,9,6,17],[15,0,15,2],[15,3,15,4],[15,5,15,12],[15,13,15,17],[16,0,16,2],[16,3,16,4],[16,5,16,12],[16,13,16,17],[18,0,19,1],[18,2,19,2],[18,3,19,9],[18,10,19,10],[18,12,18,17],[19,11,19,17],[21,0,21,1],[21,3,21,9],[21,11,21,17],[22,0,22,2],[22,3,22,17],[23,0,23,2],[23,3,23,17],[30,15,30,17],[30,3,30,5],[30,6,30,8],[24,0,25,2],[24,3,25,17],[31,0,33,2],[31,3,31,14],[30,12,30,14],[28,6,29,8],[34,12,34,14],[24,19,25,19],[26,0,27,2],[26,3,27,17],[26,19,27,19],[28,3,29,5],[31,15,31,17],[32,3,32,14],[32,15,33,17],[33,3,33,14],[28,9,28,11],[28,12,28,14],[28,15,29,17],[29,9,29,11],[29,12,29,14],[30,9,30,11],[28,0,30,2],[34,15,34,17],[34,0,34,2],[34,3,34,5],[34,6,34,7],[34,8,34,9],[34,10,34,11],[37,0,37,2],[37,3,37,17],[38,0,40,2],[38,3,38,17],[39,3,39,17],[40,3,40,17],[35,0,36,2],[35,3,36,5],[35,6,36,6],[35,7,36,7],[35,8,35,9],[35,10,35,11],[35,15,35,17],[36,8,36,9],[36,10,36,11],[36,15,36,17],[41,0,41,2],[42,0,42,2],[42,3,42,8],[42,11,43,17],[43,0,43,2],[43,3,43,8],[44,0,44,2],[44,3,44,9],[44,10,45,14],[44,15,45,16],[44,17,45,17],[45,0,45,2],[45,3,45,9],[46,0,46,2],[46,3,46,17],[51,0,51,2],[51,3,51,14],[51,15,51,17],[52,0,52,2],[52,3,52,14],[52,15,52,17],[47,0,47,17],[48,0,48,2],[48,3,48,7],[48,8,48,14],[48,15,48,17],[49,0,49,2],[49,3,49,7],[49,8,49,14],[49,15,50,17],[50,0,50,2],[50,3,50,7],[50,8,50,14],[55,0,55,2],[55,3,55,14],[55,15,57,17],[56,0,56,2],[56,3,56,14],[57,0,57,2],[57,3,57,14],[53,0,53,2],[53,3,53,14],[53,15,53,17],[54,0,54,2],[54,3,54,14],[54,15,54,17]]}
[null,null,null,null,null,null,null,null,"受付番号",null,null,null,null,null,null,null,null,null,null,null,"RQD\n\n\n\nwwwwwwwwwwwwwwwwwwwwwwwwwwwwww\n\n\n\nddddddddddddddd\n\n\nwwwwwwwwwwwwwwwwwwwwwwwwww\n\n\n\n\n2\n\n\n\n\n\n\n\n\n\n\n\n\n\n\n\n\n\n28\n\n\n\n\n\n\n\n\n\n\n\n\n\n\n\n3108"]
[]
[null,null,null,null,null,null,null,null,null,null,null,null,null,null,null,null,null,null,null,"※注意事項※","計算式が入っています。さわらないで下さい"]
[null,null,null,null,null,null,null,null,null,null,null,null,null,null,null,null,null,null,null,"QRコードに変換する情報はＵ列に保存されます。",{"$f":"IF(M13=\"\",\"\",M13)","v":""},"メールアドレス"]
[null,null,null,null,null,null,null,null,null,null,null,null,null,null,null,"2020.6.1改定（Rev.9)",null,null,null,"セルの行や列を増やすと、読み込みエラーが"]
[null,null,null,null,null,null,null,null,null,"様式 011-1  コンクリート強度試験依頼書",null,null,null,null,null,null,null,null,null,"発生しますので、絶対に行わないで下さい。"]
[null,null,null,null,null,null,null,null,null,"石川県生コンクリート工業組合共同試験場行",null,null,null,null,null,null,null,null,null,null,{"$f":"IF(E14=\"\",\"\",E14)","v":""},"顧客名"]
[]
[null,null,null,null,null,null,null,null,null,null,null,null,null,null,"技術管理者",null,"受付者",null,null,"試験依頼書の印刷はボタンを使用して下さい"]
[null,null,null,null,null,null,null,null,null,null,null,null,null,null,null,null,null,null,null,"印刷時にＱＲコードが作成されます",{"$f":"IF(L22=\"\",\"\",L22)","v":""},"報告書宛名住所"]
[null,null,null,null,null,null,null,null,null,null,null,null,null,null,null,null,null,null,null,null,{"$f":"IF(D22=\"\",\"\",D22)","v":""},"報宛"]
[]
["【顧客情報欄】",null,null,null,null,null,null,null,null,"メールアドレス",null,null,null,null,null,null,null,null,null,"メールアドレス記入して下さい",{"$f":"IF(L20=\"\",\"\",L20)","v":""},"請求先住所"]
["顧客又は代理者",null,null,"会社名",null,null,null,null,null,null,null,null,"担当者",null,null,null,null,null,null,"依頼書の返送、報告書の速報を送ることがきます",{"$f":"IF(D19=\"\",\"\",D19)","v":""},"請求先"]
[null,null,null,null,null,null,null,null,null,null,null,null,null,null,null,null,null,null,null,"顧客　＝報告書宛名に記載する方を指します"]
[null,null,null,"郵便番号",null,"住所",null,null,null,null,null,null,null,"連絡先",null,null,null,null,null,"代理者＝顧客(報告書宛名)から試験を代理で依頼する方を指します"]
[null,null,null,null,null,null,null,null,null,null,null,null,null,null,null,null,null,null,null,"代行試験の場合、代理者に☑を入れて下さい"]
["【試験の請求先】",null,null,null,null,null,null,null,null,null,null,null,null,null,null,null,null,null,null,null,null,null,null,0]
["請求先",null,"会社名",null,null,null,null,null,null,null,"住所","〒",null,null,null,null,null,null,null,"試験料金の請求先を明記して下さい",{"$f":"IF(P45=\"\",\"\",P45)","v":2},"部数"]
[]
["【試験報告書記載欄】",null,null,null,null,null,null,null,null,null,null,null,null,null,null,null,null,null,null,"                 請求先・報告書宛名・施工者を検索できます "]
["報告書宛名",null,"会社名",null,null,null,null,null,null,null,"住所",null,null,null,null,null,null,null,null,"報告書の表紙(表面)に記載する顧客の名前及び住所を明記して下さい",{"$f":"IF(D23=\"\",\"\",D23)","v":""},"施工者"]
["施工者",null,null,null,null,null,null,null,null,null,null,null,null,null,null,null,null,null,null,"施工者名を明記して下さい",{"$f":"IF(D24=\"\",\"\",D24)","v":""},"工事名"]
["工事名",null,null,null,null,null,null,null,null,null,null,null,null,null,null,null,null,null,null,"工事名を明記して下さい",{"$f":"IF(D25=\"\",\"\",D25)","v":""},"打設箇所"]
["打設箇所",null,null,null,null,null,null,null,null,null,null,null,null,null,null,null,null,null,null,"打設箇所を明記して下さい",{"$f":"IF(D27=\"\",\"\",D27)","v":""},"生コン納入工場"]
[null,null,null,null,null,null,null,null,null,null,null,null,null,null,null,null,null,null,null,null,{"$f":"IF(D31=\"\",\"\",D31)","v":""},"コンクリート種類"]
["生コン納入工場",null,null,null,null,null,null,null,null,null,null,null,null,null,null,null,null,null,null,"納入した生コン工場名を明記して下さい",{"$f":"IF(G31=\"\",\"\",G31)","v":""},"呼び強度"]
[null,null,null,null,null,null,null,null,null,null,null,null,null,null,null,null,null,null,null,null,{"$f":"IF(J31=\"\",\"\",J31)","v":""},"スランプ"]
["呼び方",null,null,"コンクリートの 　 　　　種類による記号",null,null,"呼び強度",null,null,"スランプ又は",null,null,"粗骨材の最大寸法",null,null,"セメントの種類　　　　による記号",null,null,null,null,{"$f":"IF(M31=\"\",\"\",M31)","v":""},"骨材の最大寸法"]
[null,null,null,null,null,null,null,null,null,"スランプフロー（cm）",null,null,"（mm）",null,null,null,null,null,null,"製品の呼び方を明記して下さい",{"$f":"IF(P31=\"\",\"\",P31)","v":""},"セメントの種類"]
[null,null,null,null,null,null,null,null,null,null,null,null,null,null,null,null,null,null,"い","コンクリートの種類及びセメントの種類は▼タブで選択できます",{"$f":"IF(D32=\"\",\"\",D32)","v":""},"指定事項欄①"]
["指定事項",null,null,null,null,null,null,null,null,null,null,null,null,null,null,"構造体強度補正値",null,null,null,"補正値の名称は▼タブで選択できます（気温による補正値）",{"$f":"IF(D33=\"\",\"\",D33)","v":""},"指定事項欄②"]
[null,null,null,null,null,null,null,null,null,null,null,null,null,null,null,null,null,null,null,null,{"$f":"IF(D34=\"\",\"\",D34)","v":""},"指定事項欄③","普通"]
[null,null,null,null,null,null,null,null,null,null,null,null,null,null,null,null,null,null,null,null,{"$f":"IF(P33=\"\",\"\",P33)","v":""},"補正値","舗装"]
["供試体作製日",null,null,"強度試験予定日",null,null,"材齢",null,"養生",null,"本数",null,"供試体識別番号",null,null,"摘要",null,null,null,null,{"$f":"IF(A36=\"\",\"\",A36)","v":""},"供試体作製日","軽量"]
[null,null,null,null,null,null,28,"日",null,null,null,null,null,null,null,null,null,null,null,"■ボタンは、試験予定日又は材齢の入力ボタンです",{"$f":"IF(D36=\"\",\"\",D36)","v":""},"試験予定日","高強度"]
[null,null,null,null,null,null,null,null,null,null,null,null,null,null,null,null,null,null,null,"作製日と材齢を入力しボタンを押すと、試験日が表示されます",{"$f":"IF(G36=\"\",\"\",G36)","v":28},"材齢"]
["供試体形状寸法",null,null,null,null,null,null,null,null,null,null,null,null,null,null,null,null,null,null,"作製日と試験日を入力しボタンを押すと、材齢が表示されます",{"$f":"IF(I36=\"\",\"\",I36)","v":""},"養生1","Ｎ"]
["備考",null,null,null,null,null,null,null,null,null,null,null,null,null,null,null,null,null,null,"養生方法、本数は▼タブで選択できます",{"$f":"IF(I37=\"\",\"\",I37)","v":""},"養生2","ＢＢ"]
[null,null,null,null,null,null,null,null,null,null,null,null,null,null,null,null,null,null,null,null,{"$f":"IF(K36=\"\",\"\",K36)","v":""},"試験本数１","Ｈ"]
[null,null,null,null,null,null,null,null,null,null,null,null,null,null,null,null,null,null,null,null,{"$f":"IF(K37=\"\",\"\",K37)","v":""},"試験本数２","ＦＢ"]
["【その他】　",null,null,null,null,null,null,null,null,null,null,null,null,null,null,null,null,null,null,null,{"$f":"IF(M36=\"\",\"\",M36)","v":""},"識別No.1"]
["JNLAロゴマーク",null,null,null,null,null,null,null,null,"発注",null,null,null,null,null,null,null,null,null,"JNLAロゴ入り報告書が必要な場合は「必要」に☑をして下さい",{"$f":"IF(N36=\"\",\"\",N36)","v":""},"識別No.2"]
["証明事項",null,null,null,null,null,null,null,null,"機関",null,null,null,null,null,null,null,null,null,"発注先を選択して下さい。左記に該当する項目がない場合は、",{"$f":"IF(O36=\"\",\"\",O36)","v":""},"識別No.3","標準"]
["報告書受領方法",null,null,null,null,null,null,null,null,null,"試験報告書部数",null,null,null,null,2,null,"部",null,"その他に☑をお願いします",{"$f":"IF(M37=\"\",\"\",M37)","v":""},"識別No.4","現場水中"]
["試料の処分方法",null,null,null,null,null,null,null,null,null,null,null,null,null,null,null,null,null,null,"報告書の部数は必ず明記して下さい",{"$f":"IF(N37=\"\",\"\",N37)","v":""},"識別No.5","現場空中"]
["連絡事項",null,null,null,null,null,null,null,null,null,null,null,null,null,null,null,null,null,null,"連絡事項の欄は、報告書に記載されない箇所です。試験場へ",{"$f":"IF(O37=\"\",\"\",O37)","v":""},"識別No.6","現場封かん"]
["【試験場記入欄】　以下の欄は、記入しないで下さい。",null,null,null,null,null,null,null,null,null,null,null,null,null,null,null,null,null,null,"伝達する内容がありましたらこの欄に明記して下さい",{"$f":"IF(P36=\"\",\"\",P36)","v":""},"摘要欄１"]
["試験方法",null,null,"依頼試験項目",null,null,null,null,"区分",null,null,null,null,null,null,"数量",null,null,null,null,{"$f":"IF(P37=\"\",\"\",P37)","v":""},"摘要欄２"]
["JIS A 1108：2018",null,null,"　□　圧縮強度試験",null,null,null,null," □ 一般試験  □ ISO/IEC17025(JNLA)　                  ",null,null,null,null,null,null,{"$f":"IF(I36=\"\",\"\",SUM(I36:J37))","v":""}]
["JIS A 1106：2018",null,null,"　□　曲げ強度試験",null,null,null,null," □ 高強度  □ 高強度ISO/IEC17025(JNLA)",null,null,null,null,null,null,null,null,null,null,null,{"$f":"IF(D39=\"\",\"\",D39)","v":""},"備1"]
["JIS A 1132：2020",null,null,"　□　研磨又はキャッピング",null,null,null,null,null,null,null,null,null,null,null,null,null,null,null,null,{"$f":"IF(D40=\"\",\"\",D40)","v":""},"備2"]
["-----",null,null,"　　　事務手数料（報告書2部・郵送料含）",null,null,null,null,null,null,null,null,null,null,null,{"$f":"IF(P45=\"\",\"\",1)","v":1},null,null,null,null,{"$f":"IF(D41=\"\",\"3108\",D41)","v":"3108"},"備3"]
["-----",null,null,"　　　副本代　　（報告書1部追加ごとに）",null,null,null,null,null,null,null,null,null,null,null,{"$f":"IF(P45=0,\"\",IF(P45=1,\"\",P45-2))","v":0}]
["確認事項",null,null,"　□ 顧客又は代理者が、JIS A 1132の供試体の形状許容差を保証することを了承",null,null,null,null,null,null,null,null,null,null,null,"試験料金（税別）"]
["送付先",null,null,"　□ 報告書宛名　□ 請求先　   ※顧客又は代理者以外の場合記入"]
["試料の状態",null,null,"　□ 良好　      □ 異常　     ※異常は、結果に影響を及ぼす状態を指す"]
["備　考",null,null,"　",null,null,null,null,null,null,null,null,null,null,null,null,null,null,null,null,null,null,"JIS A 1108：2006"]
[null,null,null,null,null,null,null,null,null,null,null,null,null,null,null,null,null,null,null,null,null,null,"JIS A 1106：2006"]
[null,null,null,null,null,null,null,null,null,null,null,null,null,null,null,null,null,null,null,null,null,null,"JIS A 1132：2014"]
[]
[]
[]
[]
[null,null,null,null,null,null,null,null,null,null,null,null,null,null,null,null,null,null,null,null,null,null,"1式"]
[null,null,null,null,null,null,null,null,null,null,null,null,null,null,null,null,null,null,null,null,null,null,"1部追加"]
[]
[]
[]
[]
[null,null,null,null,null,null,null,null,null,null,null,null,null,null,null,null,null,null,null,null,null,null,"湿潤"]
[null,null,null,null,null,null,null,null,null,null,null,null,null,null,null,null,null,null,null,null,null,null,"乾燥"]
[]
[null,null,null,null,null,null,null,null,null,null,null,null,null,null,null,null,null,null,null,null,null,null,"無"]
[null,null,null,null,null,null,null,null,null,null,null,null,null,null,null,null,null,null,null,null,null,null,"有"]
[]
[null,null,null,null,null,null,null,null,null,null,null,null,null,null,null,null,null,null,null,null,null,null,"セメントペースト"]
[null,null,null,null,null,null,null,null,null,null,null,null,null,null,null,null,null,null,null,null,null,null,"その他"]
[]
[null,null,null,null,null,null,null,null,null,null,null,null,null,null,null,null,null,null,null,null,null,null,"構造体強度補正値"]
[null,null,null,null,null,null,null,null,null,null,null,null,null,null,null,null,null,null,null,null,null,null,"気温による補正値"]

{"sheet":"試験依頼4","index":3,"n_rows":81,"n_cols":24,"rows_kept":81,"cut":false,"hidden":false,"merged":[[8,18,9,18],[9,12,10,13],[9,14,10,15],[9,16,10,17],[12,9,12,11],[12,12,12,17],[8,12,8,13],[8,14,8,15],[8,16,8,17],[13,0,14,2],[13,3,14,3],[13,4,14,11],[13,12,14,12],[13,13,14,17],[0,0,10,4],[0,8,2,9],[0,10,2,15],[0,16,2,17],[4,15,4,17],[5,9,5,17],[6,9,6,17],[15,0,15,2],[15,3,15,4],[15,5,15,12],[15,13,15,17],[16,0,16,2],[16,3,16,4],[16,5,16,12],[16,13,16,17],[18,0,19,1],[18,2,19,2],[18,3,19,9],[18,10,19,10],[18,12,18,17],[19,11,19,17],[21,0,21,1],[21,3,21,9],[21,11,21,17],[22,0,22,2],[22,3,22,17],[23,0,23,2],[23,3,23,17],[30,15,30,17],[30,3,30,5],[30,6,30,8],[24,0,25,2],[24,3,25,17],[31,0,33,2],[31,3,31,14],[30,12,30,14],[28,6,29,8],[34,12,34,14],[24,19,25,19],[26,0,27,2],[26,3,27,17],[26,19,27,19],[28,3,29,5],[31,15,31,17],[32,3,32,14],[32,15,33,17],[33,3,33,14],[28,9,28,11],[28,12,28,14],[28,15,29,17],[29,9,29,11],[29,12,29,14],[30,9,30,11],[28,0,30,2],[34,15,34,17],[34,0,34,2],[34,3,34,5],[34,6,34,7],[34,8,34,9],[34,10,34,11],[37,0,37,2],[37,3,37,17],[38,0,40,2],[38,3,38,17],[39,3,39,17],[40,3,40,17],[35,0,36,2],[35,3,36,5],[35,6,36,6],[35,7,36,7],[35,8,35,9],[35,10,35,11],[35,15,35,17],[36,8,36,9],[36,10,36,11],[36,15,36,17],[41,0,41,2],[42,0,42,2],[42,3,42,8],[42,11,43,17],[43,0,43,2],[43,3,43,8],[44,0,44,2],[44,3,44,9],[44,10,45,14],[44,15,45,16],[44,17,45,17],[45,0,45,2],[45,3,45,9],[46,0,46,2],[46,3,46,17],[51,0,51,2],[51,3,51,14],[51,15,51,17],[52,0,52,2],[52,3,52,14],[52,15,52,17],[47,0,47,17],[48,0,48,2],[48,3,48,7],[48,8,48,14],[48,15,48,17],[49,0,49,2],[49,3,49,7],[49,8,49,14],[49,15,50,17],[50,0,50,2],[50,3,50,7],[50,8,50,14],[55,0,55,2],[55,3,55,14],[55,15,57,17],[56,0,56,2],[56,3,56,14],[57,0,57,2],[57,3,57,14],[53,0,53,2],[53,3,53,14],[53,15,53,17],[54,0,54,2],[54,3,54,14],[54,15,54,17]]}
[null,null,null,null,null,null,null,null,"受付番号",null,null,null,null,null,null,null,null,null,null,null,"RQD\nnanaocon@biz.mitene.or.jp\n\n\n七尾生コン(株)\n\n\n石川県能美市岩内町ヤ1-9\n(株)中東\n\n石川県能美市岩内町ヤ1-9\n(株)中東\n\n\n\n\n3\n\n\n(株)中東\n七尾仮設住宅新築工事\n９号棟・１０号棟ベース\n七尾生コン(株)\n普通\n24\n15\n25\nＮ\n\n\n\n3\n2024/03/27\n2024/04/24\n28\n現場水中\n\n3\n\n1\n2\n3\n\n\n\n\n\n\n\n\n3108\r\n\r\n\r\n"]
[]
[null,null,null,null,null,null,null,null,null,null,null,null,null,null,null,null,null,null,null,"※注意事項※","計算式が入っています。さわらないで下さい"]
[null,null,null,null,null,null,null,null,null,null,null,null,null,null,null,null,null,null,null,"QRコードに変換する情報はＵ列に保存されます。",{"$f":"IF(M13=\"\",\"\",M13)","v":""},"メールアドレス"]
[null,null,null,null,null,null,null,null,null,null,null,null,null,null,null,"2020.6.1改定（Rev.9)",null,null,null,"セルの行や列を増やすと、読み込みエラーが"]
[null,null,null,null,null,null,null,null,null,"様式 011-1  コンクリート強度試験依頼書",null,null,null,null,null,null,null,null,null,"発生しますので、絶対に行わないで下さい。"]
[null,null,null,null,null,null,null,null,null,"石川県生コンクリート工業組合共同試験場行",null,null,null,null,null,null,null,null,null,null,{"$f":"IF(E14=\"\",\"\",E14)","v":""},"顧客名"]
[]
[null,null,null,null,null,null,null,null,null,null,null,null,null,null,"技術管理者",null,"受付者",null,null,"試験依頼書の印刷はボタンを使用して下さい"]
[null,null,null,null,null,null,null,null,null,null,null,null,null,null,null,null,null,null,null,"印刷時にＱＲコードが作成されます",{"$f":"IF(L22=\"\",\"\",L22)","v":""},"報告書宛名住所"]
[null,null,null,null,null,null,null,null,null,null,null,null,null,null,null,null,null,null,null,null,{"$f":"IF(D22=\"\",\"\",D22)","v":""},"報宛"]
[]
["【顧客情報欄】",null,null,null,null,null,null,null,null,"メールアドレス",null,null,null,null,null,null,null,null,null,"メールアドレス記入して下さい",{"$f":"IF(L20=\"\",\"\",L20)","v":""},"請求先住所"]
["顧客又は代理者",null,null,"会社名",null,null,null,null,null,null,null,null,"担当者",null,null,null,null,null,null,"依頼書の返送、報告書の速報を送ることがきます",{"$f":"IF(D19=\"\",\"\",D19)","v":""},"請求先"]
[null,null,null,null,null,null,null,null,null,null,null,null,null,null,null,null,null,null,null,"顧客　＝報告書宛名に記載する方を指します"]
[null,null,null,"郵便番号",null,"住所",null,null,null,null,null,null,null,"連絡先",null,null,null,null,null,"代理者＝顧客(報告書宛名)から試験を代理で依頼する方を指します"]
[null,null,null,null,null,null,null,null,null,null,null,null,null,null,null,null,null,null,null,"代行試験の場合、代理者に☑を入れて下さい"]
["【試験の請求先】",null,null,null,null,null,null,null,null,null,null,null,null,null,null,null,null,null,null,null,null,null,null,0]
["請求先",null,"会社名",null,null,null,null,null,null,null,"住所","〒",null,null,null,null,null,null,null,"試験料金の請求先を明記して下さい",{"$f":"IF(P45=\"\",\"\",P45)","v":2},"部数"]
[]
["【試験報告書記載欄】",null,null,null,null,null,null,null,null,null,null,null,null,null,null,null,null,null,null,"                 請求先・報告書宛名・施工者を検索できます "]
["報告書宛名",null,"会社名",null,null,null,null,null,null,null,"住所",null,null,null,null,null,null,null,null,"報告書の表紙(表面)に記載する顧客の名前及び住所を明記して下さい",{"$f":"IF(D23=\"\",\"\",D23)","v":""},"施工者"]
["施工者",null,null,null,null,null,null,null,null,null,null,null,null,null,null,null,null,null,null,"施工者名を明記して下さい",{"$f":"IF(D24=\"\",\"\",D24)","v":""},"工事名"]
["工事名",null,null,null,null,null,null,null,null,null,null,null,null,null,null,null,null,null,null,"工事名を明記して下さい",{"$f":"IF(D25=\"\",\"\",D25)","v":""},"打設箇所"]
["打設箇所",null,null,null,null,null,null,null,null,null,null,null,null,null,null,null,null,null,null,"打設箇所を明記して下さい",{"$f":"IF(D27=\"\",\"\",D27)","v":""},"生コン納入工場"]
[null,null,null,null,null,null,null,null,null,null,null,null,null,null,null,null,null,null,null,null,{"$f":"IF(D31=\"\",\"\",D31)","v":""},"コンクリート種類"]
["生コン納入工場",null,null,null,null,null,null,null,null,null,null,null,null,null,null,null,null,null,null,"納入した生コン工場名を明記して下さい",{"$f":"IF(G31=\"\",\"\",G31)","v":""},"呼び強度"]
[null,null,null,null,null,null,null,null,null,null,null,null,null,null,null,null,null,null,null,null,{"$f":"IF(J31=\"\",\"\",J31)","v":""},"スランプ"]
["呼び方",null,null,"コンクリートの 　 　　　種類による記号",null,null,"呼び強度",null,null,"スランプ又は",null,null,"粗骨材の最大寸法",null,null,"セメントの種類　　　　による記号",null,null,null,null,{"$f":"IF(M31=\"\",\"\",M31)","v":""},"骨材の最大寸法"]
[null,null,null,null,null,null,null,null,null,"スランプフロー（cm）",null,null,"（mm）",null,null,null,null,null,null,"製品の呼び方を明記して下さい",{"$f":"IF(P31=\"\",\"\",P31)","v":""},"セメントの種類"]
[null,null,null,null,null,null,null,null,null,null,null,null,null,null,null,null,null,null,"い","コンクリートの種類及びセメントの種類は▼タブで選択できます",{"$f":"IF(D32=\"\",\"\",D32)","v":""},"指定事項欄①"]
["指定事項",null,null,null,null,null,null,null,null,null,null,null,null,null,null,"構造体強度補正値",null,null,null,"補正値の名称は▼タブで選択できます（気温による補正値）",{"$f":"IF(D33=\"\",\"\",D33)","v":""},"指定事項欄②"]
[null,null,null,null,null,null,null,null,null,null,null,null,null,null,null,null,null,null,null,null,{"$f":"IF(D34=\"\",\"\",D34)","v":""},"指定事項欄③","普通"]
[null,null,null,null,null,null,null,null,null,null,null,null,null,null,null,null,null,null,null,null,{"$f":"IF(P33=\"\",\"\",P33)","v":""},"補正値","舗装"]
["供試体作製日",null,null,"強度試験予定日",null,null,"材齢",null,"養生",null,"本数",null,"供試体識別番号",null,null,"摘要",null,null,null,null,{"$f":"IF(A36=\"\",\"\",A36)","v":""},"供試体作製日","軽量"]
[null,null,null,null,null,null,28,"日",null,null,null,null,null,null,null,null,null,null,null,"■ボタンは、試験予定日又は材齢の入力ボタンです",{"$f":"IF(D36=\"\",\"\",D36)","v":""},"試験予定日","高強度"]
[null,null,null,null,null,null,null,null,null,null,null,null,null,null,null,null,null,null,null,"作製日と材齢を入力しボタンを押すと、試験日が表示されます",{"$f":"IF(G36=\"\",\"\",G36)","v":28},"材齢"]
["供試体形状寸法",null,null,null,null,null,null,null,null,null,null,null,null,null,null,null,null,null,null,"作製日と試験日を入力しボタンを押すと、材齢が表示されます",{"$f":"IF(I36=\"\",\"\",I36)","v":""},"養生1","Ｎ"]
["備考",null,null,null,null,null,null,null,null,null,null,null,null,null,null,null,null,null,null,"養生方法、本数は▼タブで選択できます",{"$f":"IF(I37=\"\",\"\",I37)","v":""},"養生2","ＢＢ"]
[null,null,null,null,null,null,null,null,null,null,null,null,null,null,null,null,null,null,null,null,{"$f":"IF(K36=\"\",\"\",K36)","v":""},"試験本数１","Ｈ"]
[null,null,null,null,null,null,null,null,null,null,null,null,null,null,null,null,null,null,null,null,{"$f":"IF(K37=\"\",\"\",K37)","v":""},"試験本数２","ＦＢ"]
["【その他】　",null,null,null,null,null,null,null,null,null,null,null,null,null,null,null,null,null,null,null,{"$f":"IF(M36=\"\",\"\",M36)","v":""},"識別No.1"]
["JNLAロゴマーク",null,null,null,null,null,null,null,null,"発注",null,null,null,null,null,null,null,null,null,"JNLAロゴ入り報告書が必要な場合は「必要」に☑をして下さい",{"$f":"IF(N36=\"\",\"\",N36)","v":""},"識別No.2"]
["証明事項",null,null,null,null,null,null,null,null,"機関",null,null,null,null,null,null,null,null,null,"発注先を選択して下さい。左記に該当する項目がない場合は、",{"$f":"IF(O36=\"\",\"\",O36)","v":""},"識別No.3","標準"]
["報告書受領方法",null,null,null,null,null,null,null,null,null,"試験報告書部数",null,null,null,null,2,null,"部",null,"その他に☑をお願いします",{"$f":"IF(M37=\"\",\"\",M37)","v":""},"識別No.4","現場水中"]
["試料の処分方法",null,null,null,null,null,null,null,null,null,null,null,null,null,null,null,null,null,null,"報告書の部数は必ず明記して下さい",{"$f":"IF(N37=\"\",\"\",N37)","v":""},"識別No.5","現場空中"]
["連絡事項",null,null,null,null,null,null,null,null,null,null,null,null,null,null,null,null,null,null,"連絡事項の欄は、報告書に記載されない箇所です。試験場へ",{"$f":"IF(O37=\"\",\"\",O37)","v":""},"識別No.6","現場封かん"]
["【試験場記入欄】　以下の欄は、記入しないで下さい。",null,null,null,null,null,null,null,null,null,null,null,null,null,null,null,null,null,null,"伝達する内容がありましたらこの欄に明記して下さい",{"$f":"IF(P36=\"\",\"\",P36)","v":""},"摘要欄１"]
["試験方法",null,null,"依頼試験項目",null,null,null,null,"区分",null,null,null,null,null,null,"数量",null,null,null,null,{"$f":"IF(P37=\"\",\"\",P37)","v":""},"摘要欄２"]
["JIS A 1108：2018",null,null,"　□　圧縮強度試験",null,null,null,null," □ 一般試験  □ ISO/IEC17025(JNLA)　                  ",null,null,null,null,null,null,{"$f":"IF(I36=\"\",\"\",SUM(I36:J37))","v":""}]
["JIS A 1106：2018",null,null,"　□　曲げ強度試験",null,null,null,null," □ 高強度  □ 高強度ISO/IEC17025(JNLA)",null,null,null,null,null,null,null,null,null,null,null,{"$f":"IF(D39=\"\",\"\",D39)","v":""},"備1"]
["JIS A 1132：2020",null,null,"　□　研磨又はキャッピング",null,null,null,null,null,null,null,null,null,null,null,null,null,null,null,null,{"$f":"IF(D40=\"\",\"\",D40)","v":""},"備2"]
["-----",null,null,"　　　事務手数料（報告書2部・郵送料含）",null,null,null,null,null,null,null,null,null,null,null,{"$f":"IF(P45=\"\",\"\",1)","v":1},null,null,null,null,{"$f":"IF(D41=\"\",\"3108\",D41)","v":"3108"},"備3"]
["-----",null,null,"　　　副本代　　（報告書1部追加ごとに）",null,null,null,null,null,null,null,null,null,null,null,{"$f":"IF(P45=0,\"\",IF(P45=1,\"\",P45-2))","v":0}]
["確認事項",null,null,"　□ 顧客又は代理者が、JIS A 1132の供試体の形状許容差を保証することを了承",null,null,null,null,null,null,null,null,null,null,null,"試験料金（税別）"]
["送付先",null,null,"　□ 報告書宛名　□ 請求先　   ※顧客又は代理者以外の場合記入"]
["試料の状態",null,null,"　□ 良好　      □ 異常　     ※異常は、結果に影響を及ぼす状態を指す"]
["備　考",null,null,"　",null,null,null,null,null,null,null,null,null,null,null,null,null,null,null,null,null,null,"JIS A 1108：2006"]
[null,null,null,null,null,null,null,null,null,null,null,null,null,null,null,null,null,null,null,null,null,null,"JIS A 1106：2006"]
[null,null,null,null,null,null,null,null,null,null,null,null,null,null,null,null,null,null,null,null,null,null,"JIS A 1132：2014"]
[]
[]
[]
[]
[null,null,null,null,null,null,null,null,null,null,null,null,null,null,null,null,null,null,null,null,null,null,"1式"]
[null,null,null,null,null,null,null,null,null,null,null,null,null,null,null,null,null,null,null,null,null,null,"1部追加"]
[]
[]
[]
[]
[null,null,null,null,null,null,null,null,null,null,null,null,null,null,null,null,null,null,null,null,null,null,"湿潤"]
[null,null,null,null,null,null,null,null,null,null,null,null,null,null,null,null,null,null,null,null,null,null,"乾燥"]
[]
[null,null,null,null,null,null,null,null,null,null,null,null,null,null,null,null,null,null,null,null,null,null,"無"]
[null,null,null,null,null,null,null,null,null,null,null,null,null,null,null,null,null,null,null,null,null,null,"有"]
[]
[null,null,null,null,null,null,null,null,null,null,null,null,null,null,null,null,null,null,null,null,null,null,"セメントペースト"]
[null,null,null,null,null,null,null,null,null,null,null,null,null,null,null,null,null,null,null,null,null,null,"その他"]
[]
[null,null,null,null,null,null,null,null,null,null,null,null,null,null,null,null,null,null,null,null,null,null,"構造体強度補正値"]
[null,null,null,null,null,null,null,null,null,null,null,null,null,null,null,null,null,null,null,null,null,null,"気温による補正値"]

{"sheet":"試験依頼5","index":4,"n_rows":81,"n_cols":24,"rows_kept":81,"cut":false,"hidden":false,"merged":[[55,0,55,2],[55,3,55,14],[55,15,57,17],[56,0,56,2],[56,3,56,14],[57,0,57,2],[57,3,57,14],[53,0,53,2],[53,3,53,14],[53,15,53,17],[54,0,54,2],[54,3,54,14],[54,15,54,17],[51,0,51,2],[51,3,51,14],[51,15,51,17],[52,0,52,2],[52,3,52,14],[52,15,52,17],[49,0,49,2],[49,3,49,7],[49,8,49,14],[49,15,50,17],[50,0,50,2],[50,3,50,7],[50,8,50,14],[46,0,46,2],[46,3,46,17],[47,0,47,17],[48,0,48,2],[48,3,48,7],[48,8,48,14],[48,15,48,17],[44,0,44,2],[44,3,44,9],[44,10,45,14],[44,15,45,16],[44,17,45,17],[45,0,45,2],[45,3,45,9],[41,0,41,2],[42,0,42,2],[42,3,42,8],[42,11,43,17],[43,0,43,2],[43,3,43,8],[36,10,36,11],[36,15,36,17],[37,0,37,2],[37,3,37,17],[38,0,40,2],[38,3,38,17],[39,3,39,17],[40,3,40,17],[35,0,36,2],[35,3,36,5],[35,6,36,6],[35,7,36,7],[35,8,35,9],[35,10,35,11],[35,15,35,17],[36,8,36,9],[34,0,34,2],[34,3,34,5],[34,6,34,7],[34,8,34,9],[34,10,34,11],[31,0,33,2],[31,3,31,14],[30,12,30,14],[28,6,29,8],[34,12,34,14],[31,15,31,17],[32,3,32,14],[32,15,33,17],[33,3,33,14],[28,9,28,11],[28,12,28,14],[28,15,29,17],[29,9,29,11],[29,12,29,14],[30,9,30,11],[30,15,30,17],[30,3,30,5],[30,6,30,8],[34,15,34,17],[24,0,25,2],[24,3,25,17],[24,19,25,19],[26,0,27,2],[26,3,27,17],[26,19,27,19],[28,3,29,5],[21,0,21,1],[21,3,21,9],[21,11,21,17],[22,0,22,2],[22,3,22,17],[23,0,23,2],[23,3,23,17],[28,0,30,2],[16,0,16,2],[16,3,16,4],[16,5,16,12],[16,13,16,17],[18,0,19,1],[18,2,19,2],[18,3,19,9],[18,10,19,10],[18,12,18,17],[19,11,19,17],[13,0,14,2],[13,3,14,3],[13,4,14,11],[13,12,14,12],[13,13,14,17],[15,0,15,2],[15,3,15,4],[15,5,15,12],[15,13,15,17],[8,18,9,18],[9,12,10,13],[9,14,10,15],[9,16,10,17],[12,9,12,11],[12,12,12,17],[0,0,10,4],[0,8,2,9],[0,10,2,15],[0,16,2,17],[4,15,4,17],[5,9,5,17],[6,9,6,17],[8,12,8,13],[8,14,8,15],[8,16,8,17]]}
[null,null,null,null,null,null,null,null,"受付番号",null,null,null,null,null,null,null,null,null,null,null,"RQD\nnanaocon@biz.mitene.or.jp\n\n\n七尾生コン(株)\n\n\n石川県金沢市松村5丁目2 桑沢ビル206号室\n郡リース(株)\n\n石川県金沢市松村5丁目2 桑沢ビル206号室\n郡リース(株)金沢出張所 2\n\n\n\n\n3\n\n\n郡リース(株)\n令和６年石川県能登半島地震 応急仮設住宅(NN-8 垣吉町第１団地)\nベースコンクリート\n七尾生コン(株)\n普通\n24\n18\n25\nＮ\n\n\n\n3\n2024/03/30\n2024/04/26\n27\n標準\n\n3\n\n1\n2\n3\n\n\n\n\n\n\n\n\n3108"]
[]
[null,null,null,null,null,null,null,null,null,null,null,null,null,null,null,null,null,null,null,"※注意事項※","計算式が入っています。さわらないで下さい"]
[null,null,null,null,null,null,null,null,null,null,null,null,null,null,null,null,null,null,null,"QRコードに変換する情報はＵ列に保存されます。",{"$f":"IF(M13=\"\",\"\",M13)","v":""},"メールアドレス"]
[null,null,null,null,null,null,null,null,null,null,null,null,null,null,null,"2020.6.1改定（Rev.9)",null,null,null,"セルの行や列を増やすと、読み込みエラーが"]
[null,null,null,null,null,null,null,null,null,"様式 011-1  コンクリート強度試験依頼書",null,null,null,null,null,null,null,null,null,"発生しますので、絶対に行わないで下さい。"]
[null,null,null,null,null,null,null,null,null,"石川県生コンクリート工業組合共同試験場行",null,null,null,null,null,null,null,null,null,null,{"$f":"IF(E14=\"\",\"\",E14)","v":""},"顧客名"]
[]
[null,null,null,null,null,null,null,null,null,null,null,null,null,null,"技術管理者",null,"受付者",null,null,"試験依頼書の印刷はボタンを使用して下さい"]
[null,null,null,null,null,null,null,null,null,null,null,null,null,null,null,null,null,null,null,"印刷時にＱＲコードが作成されます",{"$f":"IF(L22=\"\",\"\",L22)","v":""},"報告書宛名住所"]
[null,null,null,null,null,null,null,null,null,null,null,null,null,null,null,null,null,null,null,null,{"$f":"IF(D22=\"\",\"\",D22)","v":""},"報宛"]
[]
["【顧客情報欄】",null,null,null,null,null,null,null,null,"メールアドレス",null,null,null,null,null,null,null,null,null,"メールアドレス記入して下さい",{"$f":"IF(L20=\"\",\"\",L20)","v":""},"請求先住所"]
["顧客又は代理者",null,null,"会社名",null,null,null,null,null,null,null,null,"担当者",null,null,null,null,null,null,"依頼書の返送、報告書の速報を送ることがきます",{"$f":"IF(D19=\"\",\"\",D19)","v":""},"請求先"]
[null,null,null,null,null,null,null,null,null,null,null,null,null,null,null,null,null,null,null,"顧客　＝報告書宛名に記載する方を指します"]
[null,null,null,"郵便番号",null,"住所",null,null,null,null,null,null,null,"連絡先",null,null,null,null,null,"代理者＝顧客(報告書宛名)から試験を代理で依頼する方を指します"]
[null,null,null,null,null,null,null,null,null,null,null,null,null,null,null,null,null,null,null,"代行試験の場合、代理者に☑を入れて下さい"]
["【試験の請求先】",null,null,null,null,null,null,null,null,null,null,null,null,null,null,null,null,null,null,null,null,null,null,0]
["請求先",null,"会社名",null,null,null,null,null,null,null,"住所","〒",null,null,null,null,null,null,null,"試験料金の請求先を明記して下さい",{"$f":"IF(P45=\"\",\"\",P45)","v":2},"部数"]
[]
["【試験報告書記載欄】",null,null,null,null,null,null,null,null,null,null,null,null,null,null,null,null,null,null,"                 請求先・報告書宛名・施工者を検索できます "]
["報告書宛名",null,"会社名",null,null,null,null,null,null,null,"住所",null,null,null,null,null,null,null,null,"報告書の表紙(表面)に記載する顧客の名前及び住所を明記して下さい",{"$f":"IF(D23=\"\",\"\",D23)","v":""},"施工者"]
["施工者",null,null,null,null,null,null,null,null,null,null,null,null,null,null,null,null,null,null,"施工者名を明記して下さい",{"$f":"IF(D24=\"\",\"\",D24)","v":""},"工事名"]
["工事名",null,null,null,null,null,null,null,null,null,null,null,null,null,null,null,null,null,null,"工事名を明記して下さい",{"$f":"IF(D25=\"\",\"\",D25)","v":""},"打設箇所"]
["打設箇所",null,null,null,null,null,null,null,null,null,null,null,null,null,null,null,null,null,null,"打設箇所を明記して下さい",{"$f":"IF(D27=\"\",\"\",D27)","v":""},"生コン納入工場"]
[null,null,null,null,null,null,null,null,null,null,null,null,null,null,null,null,null,null,null,null,{"$f":"IF(D31=\"\",\"\",D31)","v":""},"コンクリート種類"]
["生コン納入工場",null,null,null,null,null,null,null,null,null,null,null,null,null,null,null,null,null,null,"納入した生コン工場名を明記して下さい",{"$f":"IF(G31=\"\",\"\",G31)","v":""},"呼び強度"]
[null,null,null,null,null,null,null,null,null,null,null,null,null,null,null,null,null,null,null,null,{"$f":"IF(J31=\"\",\"\",J31)","v":""},"スランプ"]
["呼び方",null,null,"コンクリートの 　 　　　種類による記号",null,null,"呼び強度",null,null,"スランプ又は",null,null,"粗骨材の最大寸法",null,null,"セメントの種類　　　　による記号",null,null,null,null,{"$f":"IF(M31=\"\",\"\",M31)","v":""},"骨材の最大寸法"]
[null,null,null,null,null,null,null,null,null,"スランプフロー（cm）",null,null,"（mm）",null,null,null,null,null,null,"製品の呼び方を明記して下さい",{"$f":"IF(P31=\"\",\"\",P31)","v":""},"セメントの種類"]
[null,null,null,null,null,null,null,null,null,null,null,null,null,null,null,null,null,null,"い","コンクリートの種類及びセメントの種類は▼タブで選択できます",{"$f":"IF(D32=\"\",\"\",D32)","v":""},"指定事項欄①"]
["指定事項",null,null,null,null,null,null,null,null,null,null,null,null,null,null,"構造体強度補正値",null,null,null,"補正値の名称は▼タブで選択できます（気温による補正値）",{"$f":"IF(D33=\"\",\"\",D33)","v":""},"指定事項欄②"]
[null,null,null,null,null,null,null,null,null,null,null,null,null,null,null,null,null,null,null,null,{"$f":"IF(D34=\"\",\"\",D34)","v":""},"指定事項欄③","普通"]
[null,null,null,null,null,null,null,null,null,null,null,null,null,null,null,null,null,null,null,null,{"$f":"IF(P33=\"\",\"\",P33)","v":""},"補正値","舗装"]
["供試体作製日",null,null,"強度試験予定日",null,null,"材齢",null,"養生",null,"本数",null,"供試体識別番号",null,null,"摘要",null,null,null,null,{"$f":"IF(A36=\"\",\"\",A36)","v":""},"供試体作製日","軽量"]
[null,null,null,null,null,null,28,"日",null,null,null,null,null,null,null,null,null,null,null,"■ボタンは、試験予定日又は材齢の入力ボタンです",{"$f":"IF(D36=\"\",\"\",D36)","v":""},"試験予定日","高強度"]
[null,null,null,null,null,null,null,null,null,null,null,null,null,null,null,null,null,null,null,"作製日と材齢を入力しボタンを押すと、試験日が表示されます",{"$f":"IF(G36=\"\",\"\",G36)","v":28},"材齢"]
["供試体形状寸法",null,null,null,null,null,null,null,null,null,null,null,null,null,null,null,null,null,null,"作製日と試験日を入力しボタンを押すと、材齢が表示されます",{"$f":"IF(I36=\"\",\"\",I36)","v":""},"養生1","Ｎ"]
["備考",null,null,null,null,null,null,null,null,null,null,null,null,null,null,null,null,null,null,"養生方法、本数は▼タブで選択できます",{"$f":"IF(I37=\"\",\"\",I37)","v":""},"養生2","ＢＢ"]
[null,null,null,null,null,null,null,null,null,null,null,null,null,null,null,null,null,null,null,null,{"$f":"IF(K36=\"\",\"\",K36)","v":""},"試験本数１","Ｈ"]
[null,null,null,null,null,null,null,null,null,null,null,null,null,null,null,null,null,null,null,null,{"$f":"IF(K37=\"\",\"\",K37)","v":""},"試験本数２","ＦＢ"]
["【その他】　",null,null,null,null,null,null,null,null,null,null,null,null,null,null,null,null,null,null,null,{"$f":"IF(M36=\"\",\"\",M36)","v":""},"識別No.1"]
["JNLAロゴマーク",null,null,null,null,null,null,null,null,"発注",null,null,null,null,null,null,null,null,null,"JNLAロゴ入り報告書が必要な場合は「必要」に☑をして下さい",{"$f":"IF(N36=\"\",\"\",N36)","v":""},"識別No.2"]
["証明事項",null,null,null,null,null,null,null,null,"機関",null,null,null,null,null,null,null,null,null,"発注先を選択して下さい。左記に該当する項目がない場合は、",{"$f":"IF(O36=\"\",\"\",O36)","v":""},"識別No.3","標準"]
["報告書受領方法",null,null,null,null,null,null,null,null,null,"試験報告書部数",null,null,null,null,2,null,"部",null,"その他に☑をお願いします",{"$f":"IF(M37=\"\",\"\",M37)","v":""},"識別No.4","現場水中"]
["試料の処分方法",null,null,null,null,null,null,null,null,null,null,null,null,null,null,null,null,null,null,"報告書の部数は必ず明記して下さい",{"$f":"IF(N37=\"\",\"\",N37)","v":""},"識別No.5","現場空中"]
["連絡事項",null,null,null,null,null,null,null,null,null,null,null,null,null,null,null,null,null,null,"連絡事項の欄は、報告書に記載されない箇所です。試験場へ",{"$f":"IF(O37=\"\",\"\",O37)","v":""},"識別No.6","現場封かん"]
["【試験場記入欄】　以下の欄は、記入しないで下さい。",null,null,null,null,null,null,null,null,null,null,null,null,null,null,null,null,null,null,"伝達する内容がありましたらこの欄に明記して下さい",{"$f":"IF(P36=\"\",\"\",P36)","v":""},"摘要欄１"]
["試験方法",null,null,"依頼試験項目",null,null,null,null,"区分",null,null,null,null,null,null,"数量",null,null,null,null,{"$f":"IF(P37=\"\",\"\",P37)","v":""},"摘要欄２"]
["JIS A 1108：2018",null,null,"　□　圧縮強度試験",null,null,null,null," □ 一般試験  □ ISO/IEC17025(JNLA)　                  ",null,null,null,null,null,null,{"$f":"IF(I36=\"\",\"\",SUM(I36:J37))","v":""}]
["JIS A 1106：2018",null,null,"　□　曲げ強度試験",null,null,null,null," □ 高強度  □ 高強度ISO/IEC17025(JNLA)",null,null,null,null,null,null,null,null,null,null,null,{"$f":"IF(D39=\"\",\"\",D39)","v":""},"備1"]
["JIS A 1132：2020",null,null,"　□　研磨又はキャッピング",null,null,null,null,null,null,null,null,null,null,null,null,null,null,null,null,{"$f":"IF(D40=\"\",\"\",D40)","v":""},"備2"]
["-----",null,null,"　　　事務手数料（報告書2部・郵送料含）",null,null,null,null,null,null,null,null,null,null,null,{"$f":"IF(P45=\"\",\"\",1)","v":1},null,null,null,null,{"$f":"IF(D41=\"\",\"3108\",D41)","v":"3108"},"備3"]
["-----",null,null,"　　　副本代　　（報告書1部追加ごとに）",null,null,null,null,null,null,null,null,null,null,null,{"$f":"IF(P45=0,\"\",IF(P45=1,\"\",P45-2))","v":0}]
["確認事項",null,null,"　□ 顧客又は代理者が、JIS A 1132の供試体の形状許容差を保証することを了承",null,null,null,null,null,null,null,null,null,null,null,"試験料金（税別）"]
["送付先",null,null,"　□ 報告書宛名　□ 請求先　   ※顧客又は代理者以外の場合記入"]
["試料の状態",null,null,"　□ 良好　      □ 異常　     ※異常は、結果に影響を及ぼす状態を指す"]
["備　考",null,null,"　",null,null,null,null,null,null,null,null,null,null,null,null,null,null,null,null,null,null,"JIS A 1108：2006"]
[null,null,null,null,null,null,null,null,null,null,null,null,null,null,null,null,null,null,null,null,null,null,"JIS A 1106：2006"]
[null,null,null,null,null,null,null,null,null,null,null,null,null,null,null,null,null,null,null,null,null,null,"JIS A 1132：2014"]
[]
[]
[]
[]
[null,null,null,null,null,null,null,null,null,null,null,null,null,null,null,null,null,null,null,null,null,null,"1式"]
[null,null,null,null,null,null,null,null,null,null,null,null,null,null,null,null,null,null,null,null,null,null,"1部追加"]
[]
[]
[]
[]
[null,null,null,null,null,null,null,null,null,null,null,null,null,null,null,null,null,null,null,null,null,null,"湿潤"]
[null,null,null,null,null,null,null,null,null,null,null,null,null,null,null,null,null,null,null,null,null,null,"乾燥"]
[]
[null,null,null,null,null,null,null,null,null,null,null,null,null,null,null,null,null,null,null,null,null,null,"無"]
[null,null,null,null,null,null,null,null,null,null,null,null,null,null,null,null,null,null,null,null,null,null,"有"]
[]
[null,null,null,null,null,null,null,null,null,null,null,null,null,null,null,null,null,null,null,null,null,null,"セメントペースト"]
[null,null,null,null,null,null,null,null,null,null,null,null,null,null,null,null,null,null,null,null,null,null,"その他"]
[]
[null,null,null,null,null,null,null,null,null,null,null,null,null,null,null,null,null,null,null,null,null,null,"構造体強度補正値"]
[null,null,null,null,null,null,null,null,null,null,null,null,null,null,null,null,null,null,null,null,null,null,"気温による補正値"]

{"sheet":"試験依頼6","index":5,"n_rows":81,"n_cols":24,"rows_kept":81,"cut":false,"hidden":false,"merged":[[55,0,55,2],[55,3,55,14],[55,15,57,17],[56,0,56,2],[56,3,56,14],[57,0,57,2],[57,3,57,14],[53,0,53,2],[53,3,53,14],[53,15,53,17],[54,0,54,2],[54,3,54,14],[54,15,54,17],[51,0,51,2],[51,3,51,14],[51,15,51,17],[52,0,52,2],[52,3,52,14],[52,15,52,17],[49,0,49,2],[49,3,49,7],[49,8,49,14],[49,15,50,17],[50,0,50,2],[50,3,50,7],[50,8,50,14],[46,0,46,2],[46,3,46,17],[47,0,47,17],[48,0,48,2],[48,3,48,7],[48,8,48,14],[48,15,48,17],[44,0,44,2],[44,3,44,9],[44,10,45,14],[44,15,45,16],[44,17,45,17],[45,0,45,2],[45,3,45,9],[41,0,41,2],[42,0,42,2],[42,3,42,8],[42,11,43,17],[43,0,43,2],[43,3,43,8],[36,10,36,11],[36,15,36,17],[37,0,37,2],[37,3,37,17],[38,0,40,2],[38,3,38,17],[39,3,39,17],[40,3,40,17],[35,0,36,2],[35,3,36,5],[35,6,36,6],[35,7,36,7],[35,8,35,9],[35,10,35,11],[35,15,35,17],[36,8,36,9],[34,0,34,2],[34,3,34,5],[34,6,34,7],[34,8,34,9],[34,10,34,11],[31,0,33,2],[31,3,31,14],[30,12,30,14],[28,6,29,8],[34,12,34,14],[31,15,31,17],[32,3,32,14],[32,15,33,17],[33,3,33,14],[28,9,28,11],[28,12,28,14],[28,15,29,17],[29,9,29,11],[29,12,29,14],[30,9,30,11],[30,15,30,17],[30,3,30,5],[30,6,30,8],[34,15,34,17],[24,0,25,2],[24,3,25,17],[24,19,25,19],[26,0,27,2],[26,3,27,17],[26,19,27,19],[28,3,29,5],[21,0,21,1],[21,3,21,9],[21,11,21,17],[22,0,22,2],[22,3,22,17],[23,0,23,2],[23,3,23,17],[28,0,30,2],[16,0,16,2],[16,3,16,4],[16,5,16,12],[16,13,16,17],[18,0,19,1],[18,2,19,2],[18,3,19,9],[18,10,19,10],[18,12,18,17],[19,11,19,17],[13,0,14,2],[13,3,14,3],[13,4,14,11],[13,12,14,12],[13,13,14,17],[15,0,15,2],[15,3,15,4],[15,5,15,12],[15,13,15,17],[8,18,9,18],[9,12,10,13],[9,14,10,15],[9,16,10,17],[12,9,12,11],[12,12,12,17],[0,0,10,4],[0,8,2,9],[0,10,2,15],[0,16,2,17],[4,15,4,17],[5,9,5,17],[6,9,6,17],[8,12,8,13],[8,14,8,15],[8,16,8,17]]}
[null,null,null,null,null,null,null,null,"受付番号",null,null,null,null,null,null,null,null,null,null,null,"RQD\n\n\n\n\n\n\n\n\n\n\n\n\n\n\n\n2\n\n\n\n\n\n\n\n\n\n\n\n\n\n\n\n\n\n28\n\n\n\n\n\n\n\n\n\n\n\n\n\n\n\n3108"]
[]
[null,null,null,null,null,null,null,null,null,null,null,null,null,null,null,null,null,null,null,"※注意事項※","計算式が入っています。さわらないで下さい"]
[null,null,null,null,null,null,null,null,null,null,null,null,null,null,null,null,null,null,null,"QRコードに変換する情報はＵ列に保存されます。",{"$f":"IF(M13=\"\",\"\",M13)","v":""},"メールアドレス"]
[null,null,null,null,null,null,null,null,null,null,null,null,null,null,null,"2020.6.1改定（Rev.9)",null,null,null,"セルの行や列を増やすと、読み込みエラーが"]
[null,null,null,null,null,null,null,null,null,"様式 011-1  コンクリート強度試験依頼書",null,null,null,null,null,null,null,null,null,"発生しますので、絶対に行わないで下さい。"]
[null,null,null,null,null,null,null,null,null,"石川県生コンクリート工業組合共同試験場行",null,null,null,null,null,null,null,null,null,null,{"$f":"IF(E14=\"\",\"\",E14)","v":""},"顧客名"]
[]
[null,null,null,null,null,null,null,null,null,null,null,null,null,null,"技術管理者",null,"受付者",null,null,"試験依頼書の印刷はボタンを使用して下さい"]
[null,null,null,null,null,null,null,null,null,null,null,null,null,null,null,null,null,null,null,"印刷時にＱＲコードが作成されます",{"$f":"IF(L22=\"\",\"\",L22)","v":""},"報告書宛名住所"]
[null,null,null,null,null,null,null,null,null,null,null,null,null,null,null,null,null,null,null,null,{"$f":"IF(D22=\"\",\"\",D22)","v":""},"報宛"]
[]
["【顧客情報欄】",null,null,null,null,null,null,null,null,"メールアドレス",null,null,null,null,null,null,null,null,null,"メールアドレス記入して下さい",{"$f":"IF(L20=\"\",\"\",L20)","v":""},"請求先住所"]
["顧客又は代理者",null,null,"会社名",null,null,null,null,null,null,null,null,"担当者",null,null,null,null,null,null,"依頼書の返送、報告書の速報を送ることがきます",{"$f":"IF(D19=\"\",\"\",D19)","v":""},"請求先"]
[null,null,null,null,null,null,null,null,null,null,null,null,null,null,null,null,null,null,null,"顧客　＝報告書宛名に記載する方を指します"]
[null,null,null,"郵便番号",null,"住所",null,null,null,null,null,null,null,"連絡先",null,null,null,null,null,"代理者＝顧客(報告書宛名)から試験を代理で依頼する方を指します"]
[null,null,null,null,null,null,null,null,null,null,null,null,null,null,null,null,null,null,null,"代行試験の場合、代理者に☑を入れて下さい"]
["【試験の請求先】",null,null,null,null,null,null,null,null,null,null,null,null,null,null,null,null,null,null,null,null,null,null,0]
["請求先",null,"会社名",null,null,null,null,null,null,null,"住所","〒",null,null,null,null,null,null,null,"試験料金の請求先を明記して下さい",{"$f":"IF(P45=\"\",\"\",P45)","v":2},"部数"]
[]
["【試験報告書記載欄】",null,null,null,null,null,null,null,null,null,null,null,null,null,null,null,null,null,null,"                 請求先・報告書宛名・施工者を検索できます "]
["報告書宛名",null,"会社名",null,null,null,null,null,null,null,"住所",null,null,null,null,null,null,null,null,"報告書の表紙(表面)に記載する顧客の名前及び住所を明記して下さい",{"$f":"IF(D23=\"\",\"\",D23)","v":""},"施工者"]
["施工者",null,null,null,null,null,null,null,null,null,null,null,null,null,null,null,null,null,null,"施工者名を明記して下さい",{"$f":"IF(D24=\"\",\"\",D24)","v":""},"工事名"]
["工事名",null,null,null,null,null,null,null,null,null,null,null,null,null,null,null,null,null,null,"工事名を明記して下さい",{"$f":"IF(D25=\"\",\"\",D25)","v":""},"打設箇所"]
["打設箇所",null,null,null,null,null,null,null,null,null,null,null,null,null,null,null,null,null,null,"打設箇所を明記して下さい",{"$f":"IF(D27=\"\",\"\",D27)","v":""},"生コン納入工場"]
[null,null,null,null,null,null,null,null,null,null,null,null,null,null,null,null,null,null,null,null,{"$f":"IF(D31=\"\",\"\",D31)","v":""},"コンクリート種類"]
["生コン納入工場",null,null,null,null,null,null,null,null,null,null,null,null,null,null,null,null,null,null,"納入した生コン工場名を明記して下さい",{"$f":"IF(G31=\"\",\"\",G31)","v":""},"呼び強度"]
[null,null,null,null,null,null,null,null,null,null,null,null,null,null,null,null,null,null,null,null,{"$f":"IF(J31=\"\",\"\",J31)","v":""},"スランプ"]
["呼び方",null,null,"コンクリートの 　 　　　種類による記号",null,null,"呼び強度",null,null,"スランプ又は",null,null,"粗骨材の最大寸法",null,null,"セメントの種類　　　　による記号",null,null,null,null,{"$f":"IF(M31=\"\",\"\",M31)","v":""},"骨材の最大寸法"]
[null,null,null,null,null,null,null,null,null,"スランプフロー（cm）",null,null,"（mm）",null,null,null,null,null,null,"製品の呼び方を明記して下さい",{"$f":"IF(P31=\"\",\"\",P31)","v":""},"セメントの種類"]
[null,null,null,null,null,null,null,null,null,null,null,null,null,null,null,null,null,null,"い","コンクリートの種類及びセメントの種類は▼タブで選択できます",{"$f":"IF(D32=\"\",\"\",D32)","v":""},"指定事項欄①"]
["指定事項",null,null,null,null,null,null,null,null,null,null,null,null,null,null,"構造体強度補正値",null,null,null,"補正値の名称は▼タブで選択できます（気温による補正値）",{"$f":"IF(D33=\"\",\"\",D33)","v":""},"指定事項欄②"]
[null,null,null,null,null,null,null,null,null,null,null,null,null,null,null,null,null,null,null,null,{"$f":"IF(D34=\"\",\"\",D34)","v":""},"指定事項欄③","普通"]
[null,null,null,null,null,null,null,null,null,null,null,null,null,null,null,null,null,null,null,null,{"$f":"IF(P33=\"\",\"\",P33)","v":""},"補正値","舗装"]
["供試体作製日",null,null,"強度試験予定日",null,null,"材齢",null,"養生",null,"本数",null,"供試体識別番号",null,null,"摘要",null,null,null,null,{"$f":"IF(A36=\"\",\"\",A36)","v":""},"供試体作製日","軽量"]
[null,null,null,null,null,null,28,"日",null,null,null,null,null,null,null,null,null,null,null,"■ボタンは、試験予定日又は材齢の入力ボタンです",{"$f":"IF(D36=\"\",\"\",D36)","v":""},"試験予定日","高強度"]
[null,null,null,null,null,null,null,null,null,null,null,null,null,null,null,null,null,null,null,"作製日と材齢を入力しボタンを押すと、試験日が表示されます",{"$f":"IF(G36=\"\",\"\",G36)","v":28},"材齢"]
["供試体形状寸法",null,null,null,null,null,null,null,null,null,null,null,null,null,null,null,null,null,null,"作製日と試験日を入力しボタンを押すと、材齢が表示されます",{"$f":"IF(I36=\"\",\"\",I36)","v":""},"養生1","Ｎ"]
["備考",null,null,null,null,null,null,null,null,null,null,null,null,null,null,null,null,null,null,"養生方法、本数は▼タブで選択できます",{"$f":"IF(I37=\"\",\"\",I37)","v":""},"養生2","ＢＢ"]
[null,null,null,null,null,null,null,null,null,null,null,null,null,null,null,null,null,null,null,null,{"$f":"IF(K36=\"\",\"\",K36)","v":""},"試験本数１","Ｈ"]
[null,null,null,null,null,null,null,null,null,null,null,null,null,null,null,null,null,null,null,null,{"$f":"IF(K37=\"\",\"\",K37)","v":""},"試験本数２","ＦＢ"]
["【その他】　",null,null,null,null,null,null,null,null,null,null,null,null,null,null,null,null,null,null,null,{"$f":"IF(M36=\"\",\"\",M36)","v":""},"識別No.1"]
["JNLAロゴマーク",null,null,null,null,null,null,null,null,"発注",null,null,null,null,null,null,null,null,null,"JNLAロゴ入り報告書が必要な場合は「必要」に☑をして下さい",{"$f":"IF(N36=\"\",\"\",N36)","v":""},"識別No.2"]
["証明事項",null,null,null,null,null,null,null,null,"機関",null,null,null,null,null,null,null,null,null,"発注先を選択して下さい。左記に該当する項目がない場合は、",{"$f":"IF(O36=\"\",\"\",O36)","v":""},"識別No.3","標準"]
["報告書受領方法",null,null,null,null,null,null,null,null,null,"試験報告書部数",null,null,null,null,2,null,"部",null,"その他に☑をお願いします",{"$f":"IF(M37=\"\",\"\",M37)","v":""},"識別No.4","現場水中"]
["試料の処分方法",null,null,null,null,null,null,null,null,null,null,null,null,null,null,null,null,null,null,"報告書の部数は必ず明記して下さい",{"$f":"IF(N37=\"\",\"\",N37)","v":""},"識別No.5","現場空中"]
["連絡事項",null,null,null,null,null,null,null,null,null,null,null,null,null,null,null,null,null,null,"連絡事項の欄は、報告書に記載されない箇所です。試験場へ",{"$f":"IF(O37=\"\",\"\",O37)","v":""},"識別No.6","現場封かん"]
["【試験場記入欄】　以下の欄は、記入しないで下さい。",null,null,null,null,null,null,null,null,null,null,null,null,null,null,null,null,null,null,"伝達する内容がありましたらこの欄に明記して下さい",{"$f":"IF(P36=\"\",\"\",P36)","v":""},"摘要欄１"]
["試験方法",null,null,"依頼試験項目",null,null,null,null,"区分",null,null,null,null,null,null,"数量",null,null,null,null,{"$f":"IF(P37=\"\",\"\",P37)","v":""},"摘要欄２"]
["JIS A 1108：2018",null,null,"　□　圧縮強度試験",null,null,null,null," □ 一般試験  □ ISO/IEC17025(JNLA)　                  ",null,null,null,null,null,null,{"$f":"IF(I36=\"\",\"\",SUM(I36:J37))","v":""}]
["JIS A 1106：2018",null,null,"　□　曲げ強度試験",null,null,null,null," □ 高強度  □ 高強度ISO/IEC17025(JNLA)",null,null,null,null,null,null,null,null,null,null,null,{"$f":"IF(D39=\"\",\"\",D39)","v":""},"備1"]
["JIS A 1132：2020",null,null,"　□　研磨又はキャッピング",null,null,null,null,null,null,null,null,null,null,null,null,null,null,null,null,{"$f":"IF(D40=\"\",\"\",D40)","v":""},"備2"]
["-----",null,null,"　　　事務手数料（報告書2部・郵送料含）",null,null,null,null,null,null,null,null,null,null,null,{"$f":"IF(P45=\"\",\"\",1)","v":1},null,null,null,null,{"$f":"IF(D41=\"\",\"3108\",D41)","v":"3108"},"備3"]
["-----",null,null,"　　　副本代　　（報告書1部追加ごとに）",null,null,null,null,null,null,null,null,null,null,null,{"$f":"IF(P45=0,\"\",IF(P45=1,\"\",P45-2))","v":0}]
["確認事項",null,null,"　□ 顧客又は代理者が、JIS A 1132の供試体の形状許容差を保証することを了承",null,null,null,null,null,null,null,null,null,null,null,"試験料金（税別）"]
["送付先",null,null,"　□ 報告書宛名　□ 請求先　   ※顧客又は代理者以外の場合記入"]
["試料の状態",null,null,"　□ 良好　      □ 異常　     ※異常は、結果に影響を及ぼす状態を指す"]
["備　考",null,null,"　",null,null,null,null,null,null,null,null,null,null,null,null,null,null,null,null,null,null,"JIS A 1108：2006"]
[null,null,null,null,null,null,null,null,null,null,null,null,null,null,null,null,null,null,null,null,null,null,"JIS A 1106：2006"]
[null,null,null,null,null,null,null,null,null,null,null,null,null,null,null,null,null,null,null,null,null,null,"JIS A 1132：2014"]
[]
[]
[]
[]
[null,null,null,null,null,null,null,null,null,null,null,null,null,null,null,null,null,null,null,null,null,null,"1式"]
[null,null,null,null,null,null,null,null,null,null,null,null,null,null,null,null,null,null,null,null,null,null,"1部追加"]
[]
[]
[]
[]
[null,null,null,null,null,null,null,null,null,null,null,null,null,null,null,null,null,null,null,null,null,null,"湿潤"]
[null,null,null,null,null,null,null,null,null,null,null,null,null,null,null,null,null,null,null,null,null,null,"乾燥"]
[]
[null,null,null,null,null,null,null,null,null,null,null,null,null,null,null,null,null,null,null,null,null,null,"無"]
[null,null,null,null,null,null,null,null,null,null,null,null,null,null,null,null,null,null,null,null,null,null,"有"]
[]
[null,null,null,null,null,null,null,null,null,null,null,null,null,null,null,null,null,null,null,null,null,null,"セメントペースト"]
[null,null,null,null,null,null,null,null,null,null,null,null,null,null,null,null,null,null,null,null,null,null,"その他"]
[]
[null,null,null,null,null,null,null,null,null,null,null,null,null,null,null,null,null,null,null,null,null,null,"構造体強度補正値"]
[null,null,null,null,null,null,null,null,null,null,null,null,null,null,null,null,null,null,null,null,null,null,"気温による補正値"]

{"sheet":"業者名","index":6,"n_rows":1,"n_cols":3,"rows_kept":1,"cut":false,"hidden":false,"merged":[]}
["業者名","住所","郵便番号"]